Workbook

Sheet Program
C8: UGA Basic Balancer Program
N10: UGA Beef Team
N11: www.ugabeef.com
N12: 1-800-ASK-UGA-1
N14: County | O14: Simmental
N15: Agent | O15: Joe Angus
N16: Contact | O16: 706-542-1852
N19: *Directions for this program located on the Beef Team website listed above.

Sheet Feed Library
B1: Feed Library
C3: Feeds | D3: DM | E3: CP | F3: TDN | G3: Ca | H3: P | I3: $/ton* | K3: Legend
C4: FORAGE/ROUGHAGE | K4: DM = Dry Matter
B5: 1 | C5: Bermudagrass Hay, Good | D5: 85 | E5: 12 | F5: 60.1 | G5: 0.38 | H5: 0.22 | I5: 100 | K5: CP = Crude Protein
B6: 2 | C6: Bermudagrass Hay, Average | D6: 85 | E6: 9 | F6: 55 | G6: 0.36 | H6: 0.18 | I6: 90 | K6: TDN = Total Digestible Nutrients
B7: 3 | C7: Bermudagrass Hay, Poor | D7: 85 | E7: 6 | F7: 48 | G7: 0.34 | H7: 0.18 | I7: 80 | K7: Ca = Calcium
B8: 4 | C8: Tall Fescue Hay, Good | D8: 85 | E8: 16 | F8: 60 | G8: 0.43 | H8: 0.32 | I8: 120 | K8: P = Phosphorus
B9: 5 | C9: Tall Fescue Hay, Average | D9: 85 | E9: 13 | F9: 55 | G9: 0.42 | H9: 0.31 | I9: 100 | K9: $/ton = dollars per ton of feed stuff
B10: 6 | C10: Tall Fescue Hay, Poor | D10: 85 | E10: 10 | F10: 50 | G10: 0.41 | H10: 0.3 | I10: 80 | K10: * prices for Pastures are based on
B11: 7 | C11: Peanut Hay | D11: 88 | E11: 11 | F11: 54 | G11: 1.2 | H11: 0.15 | I11: 80 | K11: Average management
B12: 8 | C12: Bermudagrass Pasture | D12: 25 | E12: 13 | F12: 64 | G12: 0.4 | H12: 0.27 | I12: 8.75
B13: 9 | C13: Bahiagrass Pasture | D13: 25 | E13: 10 | F13: 58 | G13: 0.46 | H13: 0.22 | I13: 8.25
B14: 10 | C14: Summer annual Pasture | D14: 25 | E14: 12 | F14: 60 | G14: 0.5 | H14: 0.44 | I14: 8.5
B15: 11 | C15: Small Grains Pasture - Vegetative | D15: 22 | E15: 18 | F15: 70 | G15: 0.45 | H15: 0.35 | I15: 12.5
B16: 12 | C16: Small Grains Pasture - Mature | D16: 25 | E16: 12 | F16: 58 | G16: 0.4 | H16: 0.3 | I16: 12.5
B17: 13 | C17: Ann. Ryegrass Pasture - Vegetative | D17: 22 | E17: 20 | F17: 72 | G17: 0.65 | H17: 0.41 | I17: 10
B18: 14 | C18: Ann. Ryegrass Pasture - Mature | D18: 25 | E18: 12 | F18: 58 | G18: 0.6 | H18: 0.35 | I18: 10
B19: 15 | C19: Tall Fescue Pasture | D19: 25 | E19: 14 | F19: 62 | G19: 0.44 | H19: 0.33 | I19: 8
B20: 16 | C20: Corn Silage | D20: 29 | E20: 9.1 | F20: 72.4 | G20: 0.28 | H20: 0.22 | I20: 50
B21: 17 | C21: Cottonseed Hulls | D21: 90 | E21: 4 | F21: 45 | G21: 0.15 | H21: 0.09 | I21: 123
B22: 18 | C22: Gin Trash | D22: 85 | E22: 11.7 | F22: 46.6 | G22: 0.9 | H22: 0.2 | I22: 35
B23: 19 | C23: Peanut Hulls | D23: 90 | E23: 8 | F23: 25 | G23: 1.2 | H23: 0.1 | I23: 20
B24: 20 | C24: Soybean Stubble | D24: 85 | E24: 5 | F24: 40 | G24: 1.2 | H24: 0.15 | I24: 20
B25: 21 | C25: Wheat Straw | D25: 89 | E25: 4 | F25: 44 | G25: 0.18 | H25: 0.5 | I25: 50
B26: 22 | C26: Alfalfa Hay | D26: 82.5 | E26: 21.1 | F26: 67.6 | G26: 1.27 | H26: 0.32 | I26: 110
B27: 23 | C27: Ryegrass Baleage - Vegetative | D27: 50 | E27: 18 | F27: 70 | G27: 0.6 | H27: 0.35 | I27: 30
B28: 24 | C28: Ryegrass Baleage - Mature | D28: 50 | E28: 12 | F28: 58 | G28: 0.6 | H28: 0.35 | I28: 30
B29: 25 | C29: BLANK | D29: 100 | E29: 0.1 | F29: 0.1 | G29: 0 | H29: 0 | I29: 999
B30: 26 | C30: BLANK | D30: 100 | E30: 0.1 | F30: 0.1 | G30: 0 | H30: 0 | I30: 999
B31: 27 | C31: BLANK | D31: 100 | E31: 0.1 | F31: 0.1 | G31: 0 | H31: 0 | I31: 999
B32: 28 | C32: PROTEIN
B33: 29 | C33: Chicken Litter | D33: 85 | E33: 18 | F33: 50 | G33: 3 | H33: 2 | I33: 25
B34: 30 | C34: Corn Gluten Feed | D34: 90 | E34: 21 | F34: 83 | G34: 0.08 | H34: 0.54 | I34: 180
B35: 31 | C35: Cottonseed Meal | D35: 90 | E35: 46 | F35: 78 | G35: 0.21 | H35: 1 | I35: 243
B36: 32 | C36: Dried Distiller's Grains | D36: 90 | E36: 28 | F36: 92 | G36: 0.05 | H36: 0.88 | I36: 25
B37: 33 | C37: Liquid Feed | D37: 67 | E37: 45 | F37: 80 | G37: 0 | H37: 0 | I37: 285
B38: 34 | C38: Molasses Block | D38: 76 | E38: 30 | F38: 80 | G38: 2 | H38: 1 | I38: 650
B39: 35 | C39: Range Cubes | D39: 85 | E39: 25 | F39: 75 | G39: 1.75 | H39: 0.5 | I39: 330
B40: 36 | C40: Soybean Meal | D40: 90 | E40: 49 | F40: 90 | G40: 0.3 | H40: 0.7 | I40: 415
B41: 37 | C41: Sunflower Meal | D41: 90 | E41: 43.6 | F41: 75 | G41: 0.5 | H41: 1.68 | I41: 350
B42: 38 | C42: Urea | D42: 99 | E42: 291 | F42: 0.1 | G42: 0 | H42: 0 | I42: 150
B43: 39 | C43: Wet Brewer's Grains | D43: 21.4 | E43: 25.7 | F43: 83.8 | G43: 0.13 | H43: 0.62 | I43: 10
B44: 40 | C44: Whole Cottonseed | D44: 90 | E44: 25 | F44: 95 | G44: 0.21 | H44: 0.64 | I44: 215
B45: 41 | C45: Whole Soybeans | D45: 90 | E45: 42 | F45: 91 | G45: 0.27 | H45: 0.3 | I45: 125
B46: 42 | C46: Whole Peanuts | D46: 93 | E46: 23 | F46: 110 | G46: 0.15 | H46: 0.033 | I46: 40
B47: 43 | C47: BLANK | D47: 100 | E47: 0.1 | F47: 0.1 | G47: 0 | H47: 0 | I47: 999
B48: 44 | C48: BLANK | D48: 100 | E48: 0.1 | F48: 0.1 | G48: 0 | H48: 0 | I48: 999
B49: 45 | C49: BLANK | D49: 100 | E49: 0.1 | F49: 0.1 | G49: 0 | H49: 0 | I49: 999
B50: 46 | C50: BLANK | D50: 100 | E50: 0.1 | F50: 0.1 | G50: 0 | H50: 0 | I50: 999
B51: 47 | C51: BLANK | D51: 100 | E51: 0.1 | F51: 0.1 | G51: 0 | H51: 0 | I51: 999
B52: 48 | C52: ENERGY/TDN
B53: 49 | C53: Barley | D53: 90 | E53: 13.2 | F53: 84 | G53: 0.05 | H53: 0.35 | I53: 200
B54: 50 | C54: Citrus Pulp | D54: 90 | E54: 7 | F54: 82 | G54: 1.8 | H54: 0.15 | I54: 220
B55: 51 | C55: Corn | D55: 90 | E55: 9 | F55: 90 | G55: 0.02 | H55: 0.35 | I55: 160
B56: 52 | C56: Grain Sorghum | D56: 90 | E56: 12 | F56: 76 | G56: 0.05 | H56: 0.34 | I56: 0
B57: 53 | C57: Molasses | D57: 78 | E57: 9 | F57: 78 | G57: 1.1 | H57: 0.1 | I57: 25
B58: 54 | C58: Oats | D58: 90 | E58: 13 | F58: 77 | G58: 0.07 | H58: 0.38 | I58: 250
B59: 55 | C59: Soybean Hulls | D59: 90 | E59: 12 | F59: 78 | G59: 0.55 | H59: 0.2 | I59: 185
B60: 56 | C60: Wheat | D60: 90 | E60: 13 | F60: 85 | G60: 0.05 | H60: 0.43 | I60: 175
B61: 57 | C61: Wheat Midds | D61: 90 | E61: 18 | F61: 83 | G61: 0.15 | H61: 1 | I61: 190
B62: 58 | C62: 50:50 CGF:SH | D62: 90 | E62: 18 | F62: 80 | G62: 0.31 | H62: 0.37 | I62: 140
B63: 59 | C63: 50:50 DDG:SH | D63: 90 | E63: 19 | F63: 81 | G63: 0.31 | H63: 0.37 | I63: 150
B64: 60 | C64: 60:20:20 SH:CGF:Corn | D64: 90 | E64: 13.4 | F64: 82.1 | G64: 0.3 | H64: 0.323 | I64: 0
B65: 61 | C65: 65:25:10 SH:CGF:PH | D65: 90 | E65: 15 | F65: 74 | G65: 0.498 | H65: 0.277 | I65: 0
B66: 62 | C66: Hominy | D66: 90 | E66: 11.5 | F66: 91 | G66: 0.05 | H66: 0.57 | I66: 240
B67: 63 | C67: Milo | D67: 100 | E67: 0.1 | F67: 0.1 | G67: 0 | H67: 0 | I67: 999
B68: 64 | C68: Ground Ear Corn | D68: 29 | E68: 9 | F68: 73 | G68: 0.29 | H68: 0.22 | I68: 200
B69: 65 | C69: 30:30:30 CGF:SH:Corn | D69: 90 | E69: 14 | F69: 83.7 | G69: 0.217 | H69: 0.36 | I69: 180
B70: 66 | C70: BLANK | D70: 100 | E70: 0.1 | F70: 0.1 | G70: 0 | H70: 0 | I70: 999
B71: 67 | C71: BLANK | D71: 100 | E71: 0.1 | F71: 0.1 | G71: 0 | H71: 0 | I71: 999
B72: 68 | C72: BLANK | D72: 100 | E72: 0.1 | F72: 0.1 | G72: 0 | H72: 0 | I72: 999
B73: 69 | C73: MINERAL
B74: 70 | C74: Basic | D74: 99 | E74: 0.1 | F74: 0.1 | G74: 12 | H74: 8 | I74: 220
B75: 71 | C75: Low P | D75: 99 | E75: 0.1 | F75: 0.1 | G75: 10 | H75: 2 | I75: 200
B76: 72 | C76: Limestone | D76: 99 | E76: 0.1 | F76: 0.1 | G76: 39 | H76: 0.01 | I76: 125
B77: 73 | C77: Salt | D77: 99 | E77: 0.1 | F77: 0.1 | G77: 0 | H77: 0 | I77: 20
B78: 74 | C78: BLANK | D78: 100 | E78: 0.1 | F78: 0.1 | G78: 0 | H78: 0 | I78: 999
B79: 75 | C79: BLANK | D79: 100 | E79: 0.1 | F79: 0.1 | G79: 0 | H79: 0 | I79: 999
B80: 76 | C80: BLANK | D80: 100 | E80: 0.1 | F80: 0.1 | G80: 0 | H80: 0 | I80: 999

Sheet Feed Cost Analyzer
B2: UGA Feed Cost Analyzer
B4: Date | C4: =TODAY() -> 2020-09-29 | E4: Dr. Lawton Stewart, Animal and Dairy Science
B5: Farm | C5: UGA Farms | E5: Dr. Curt Lacy, Agriculture and Applied Economics
E6: Dr. Dennis Hancock, Crop and Soil Sciences
E7: Local Extension Office: 1-800-ASK-UGA1 | K7: Instructions:
B9: Ingredients | C9: $/ton | D9: % DM | E9: % CP | F9: % TDN | G9: $/CWT DM | H9: $/lb CP | I9: $/lb TDN | K9: Analyzer
B10: Cottonseed Meal | C10: =VLOOKUP(B10,'Feed Library'!$C$5:$I$80,7,FALSE) -> 243 | D10: =VLOOKUP(B10,'Feed Library'!$C$5:$I$80,2,FALSE) -> 90 | E10: =VLOOKUP(B10,'Feed Library'!$C$5:$I$80,3,FALSE) -> 46 | F10: =VLOOKUP(B10,'Feed Library'!$C$5:$I$80,4,FALSE) -> 78 | G10: =C10/20/(D10/100) -> 13.5 | H10: =C10/(2000*(D10/100)*(E10/100)) -> 0.2934782609 | I10: =C10/(2000*(D10/100)*(F10/100)) -> 0.1730769231 | K10: 1) | L10: Adjust nutrient content if a nutrient analysis is available for a given feed.
B11: Soybean Meal | C11: =VLOOKUP(B11,'Feed Library'!$C$5:$I$80,7,FALSE) -> 415 | D11: =VLOOKUP(B11,'Feed Library'!$C$5:$I$80,2,FALSE) -> 90 | E11: =VLOOKUP(B11,'Feed Library'!$C$5:$I$80,3,FALSE) -> 49 | F11: =VLOOKUP(B11,'Feed Library'!$C$5:$I$80,4,FALSE) -> 90 | G11: 23.05555556 | H11: =C11/(2000*(D11/100)*(E11/100)) -> 0.470521542 | I11: =C11/(2000*(D11/100)*(F11/100)) -> 0.2561728395 | K11: 2) | L11: Select feeds to compare from drop down menus under "Ingredients".
B12: Dried Distiller's Grains | C12: =VLOOKUP(B12,'Feed Library'!$C$5:$I$80,7,FALSE) -> 25 | D12: =VLOOKUP(B12,'Feed Library'!$C$5:$I$80,2,FALSE) -> 90 | E12: =VLOOKUP(B12,'Feed Library'!$C$5:$I$80,3,FALSE) -> 28 | F12: =VLOOKUP(B12,'Feed Library'!$C$5:$I$80,4,FALSE) -> 92 | G12: 1.388888889 | H12: 0.0496031746 | I12: =C12/(2000*(D12/100)*(F12/100)) -> 0.01509661836 | K12: 3) | L12: In the | N12: shaded cells, the values of each feedstuff will be reported
B13: Corn Gluten Feed | C13: =VLOOKUP(B13,'Feed Library'!$C$5:$I$80,7,FALSE) -> 180 | D13: =VLOOKUP(B13,'Feed Library'!$C$5:$I$80,2,FALSE) -> 90 | E13: =VLOOKUP(B13,'Feed Library'!$C$5:$I$80,3,FALSE) -> 21 | F13: =VLOOKUP(B13,'Feed Library'!$C$5:$I$80,4,FALSE) -> 83 | G13: 10 | H13: 0.4761904762 | I13: 0.1204819277 | L13: on a $/nutrient basis.
B14: Whole Cottonseed | C14: =VLOOKUP(B14,'Feed Library'!$C$5:$I$80,7,FALSE) -> 215 | D14: =VLOOKUP(B14,'Feed Library'!$C$5:$I$80,2,FALSE) -> 90 | E14: =VLOOKUP(B14,'Feed Library'!$C$5:$I$80,3,FALSE) -> 25 | F14: =VLOOKUP(B14,'Feed Library'!$C$5:$I$80,4,FALSE) -> 95 | G14: 11.94444444 | H14: 0.4777777778 | I14: 0.1257309942 | K14: 4) | L14: The three cheapest options will be highlighted in order of green, yellow, red.
B15: Soybean Hulls | C15: =VLOOKUP(B15,'Feed Library'!$C$5:$I$80,7,FALSE) -> 185 | D15: =VLOOKUP(B15,'Feed Library'!$C$5:$I$80,2,FALSE) -> 90 | E15: =VLOOKUP(B15,'Feed Library'!$C$5:$I$80,3,FALSE) -> 12 | F15: =VLOOKUP(B15,'Feed Library'!$C$5:$I$80,4,FALSE) -> 78 | G15: 10.27777778 | H15: 0.8564814815 | I15: 0.1317663818
B16: Sunflower Meal | C16: =VLOOKUP(B16,'Feed Library'!$C$5:$I$80,7,FALSE) -> 350 | D16: =VLOOKUP(B16,'Feed Library'!$C$5:$I$80,2,FALSE) -> 90 | E16: =VLOOKUP(B16,'Feed Library'!$C$5:$I$80,3,FALSE) -> 43.6 | F16: =VLOOKUP(B16,'Feed Library'!$C$5:$I$80,4,FALSE) -> 75 | G16: 19.44444444 | H16: 0.4459734964 | I16: 0.2592592593
B17: Soybean Hulls | C17: =VLOOKUP(B17,'Feed Library'!$C$5:$I$80,7,FALSE) -> 185 | D17: =VLOOKUP(B17,'Feed Library'!$C$5:$I$80,2,FALSE) -> 90 | E17: =VLOOKUP(B17,'Feed Library'!$C$5:$I$80,3,FALSE) -> 12 | F17: =VLOOKUP(B17,'Feed Library'!$C$5:$I$80,4,FALSE) -> 78 | G17: 10.27777778 | H17: 0.8564814815 | I17: 0.1317663818
B18: BLANK | C18: =VLOOKUP(B18,'Feed Library'!$C$5:$I$80,7,FALSE) -> 999 | D18: =VLOOKUP(B18,'Feed Library'!$C$5:$I$80,2,FALSE) -> 100 | E18: =VLOOKUP(B18,'Feed Library'!$C$5:$I$80,3,FALSE) -> 0.1 | F18: =VLOOKUP(B18,'Feed Library'!$C$5:$I$80,4,FALSE) -> 0.1 | G18: 49.95 | H18: 499.5 | I18: 499.5
B19: BLANK | C19: =VLOOKUP(B19,'Feed Library'!$C$5:$I$80,7,FALSE) -> 999 | D19: =VLOOKUP(B19,'Feed Library'!$C$5:$I$80,2,FALSE) -> 100 | E19: =VLOOKUP(B19,'Feed Library'!$C$5:$I$80,3,FALSE) -> 0.1 | F19: =VLOOKUP(B19,'Feed Library'!$C$5:$I$80,4,FALSE) -> 0.1 | G19: 49.95 | H19: 499.5 | I19: 499.5
B20: BLANK | C20: =VLOOKUP(B20,'Feed Library'!$C$5:$I$80,7,FALSE) -> 999 | D20: =VLOOKUP(B20,'Feed Library'!$C$5:$I$80,2,FALSE) -> 100 | E20: =VLOOKUP(B20,'Feed Library'!$C$5:$I$80,3,FALSE) -> 0.1 | F20: =VLOOKUP(B20,'Feed Library'!$C$5:$I$80,4,FALSE) -> 0.1 | G20: 49.95 | H20: 499.5 | I20: 499.5
B21: BLANK | C21: =VLOOKUP(B21,'Feed Library'!$C$5:$I$80,7,FALSE) -> 999 | D21: =VLOOKUP(B21,'Feed Library'!$C$5:$I$80,2,FALSE) -> 100 | E21: =VLOOKUP(B21,'Feed Library'!$C$5:$I$80,3,FALSE) -> 0.1 | F21: =VLOOKUP(B21,'Feed Library'!$C$5:$I$80,4,FALSE) -> 0.1 | G21: 49.95 | H21: 499.5 | I21: 499.5
B22: BLANK | C22: =VLOOKUP(B22,'Feed Library'!$C$5:$I$80,7,FALSE) -> 999 | D22: =VLOOKUP(B22,'Feed Library'!$C$5:$I$80,2,FALSE) -> 100 | E22: =VLOOKUP(B22,'Feed Library'!$C$5:$I$80,3,FALSE) -> 0.1 | F22: =VLOOKUP(B22,'Feed Library'!$C$5:$I$80,4,FALSE) -> 0.1 | G22: 49.95 | H22: 499.5 | I22: 499.5
B23: BLANK | C23: =VLOOKUP(B23,'Feed Library'!$C$5:$I$80,7,FALSE) -> 999 | D23: =VLOOKUP(B23,'Feed Library'!$C$5:$I$80,2,FALSE) -> 100 | E23: =VLOOKUP(B23,'Feed Library'!$C$5:$I$80,3,FALSE) -> 0.1 | F23: =VLOOKUP(B23,'Feed Library'!$C$5:$I$80,4,FALSE) -> 0.1 | G23: 49.95 | H23: 499.5 | I23: 499.5
B24: BLANK | C24: =VLOOKUP(B24,'Feed Library'!$C$5:$I$80,7,FALSE) -> 999 | D24: =VLOOKUP(B24,'Feed Library'!$C$5:$I$80,2,FALSE) -> 100 | E24: =VLOOKUP(B24,'Feed Library'!$C$5:$I$80,3,FALSE) -> 0.1 | F24: =VLOOKUP(B24,'Feed Library'!$C$5:$I$80,4,FALSE) -> 0.1 | G24: 49.95 | H24: 499.5 | I24: 499.5
B28: Feed Comparison | K28: Feed Comparison
B29: Current Feedstuff | D29: Potential Feedstuff | K29: 1) | L29: Make sure prices are correct in the Feed Library.
B30: Wheat Straw | C30: vs. | D30: Peanut Hulls | K30: 2) | L30: Select the current feed being utilized from the drop down menu
L31: in the | N31: box.
D32: TDN | K32: 3) | L32: Select the potential feed to utilize from the drop down menu
D33: =(VLOOKUP(B30,'Feed Library'!C5:I89,7,FALSE))/(2000*(VLOOKUP(B30,'Feed Library'!C5:I89,2,FALSE)/100)*(VLOOKUP(B30,'Feed Library'!C5:I89,4,FALSE)/100))*(VLOOKUP(D30,'Feed Library'!$C$5:$I$96,2,FALSE)/100)*(VLOOKUP(D30,'Feed Library'!$C$5:$I$96,4,FALSE)/100)*2000 -> 28.72829418 | L33: in the | N33: box.
D34: CP | K34: 4) | L34: The price at which the potential feed needs to be, or lower, in order
D35: =(VLOOKUP(B30,'Feed Library'!C5:I89,7,FALSE))/(2000*(VLOOKUP(B30,'Feed Library'!C5:I89,2,FALSE)/100)*(VLOOKUP(B30,'Feed Library'!C5:I89,3,FALSE)/100))*(VLOOKUP(D30,'Feed Library'!$C$5:$I$96,2,FALSE)/100)*(VLOOKUP(D30,'Feed Library'!$C$5:$I$96,3,FALSE)/100)*2000 -> 101.1235955 | L35: to replace the current feed will appear in the | T35: boxes for a
L36: given nutrient.

Sheet Brood Cows
C1: UGA Basic Balancer - Brood Cows
C2: Description | I2: REQUIREMENTS: | K2: Notes:
C3: Farm | D3: UGA Farms | I3: TDN, % | J3: =VLOOKUP(D6,U12:Z45,4,FALSE) -> 60 | K3: •
C4: Group Size | D4: 250 | I4: CP, % | J4: =VLOOKUP(D6,U12:Z45,3,FALSE) -> 10.5 | K4: •
C5: Avg Weight | D5: 1200 | I5: Ca, % | J5: =VLOOKUP(D6,U10:Z45,5,FALSE) -> 0.28 | K5: •
C6: Target Gain | D6: Peak Lactation BW-1200 | I6: P, % | J6: =VLOOKUP(D6,U12:Z45,6,FALSE) -> 0.19 | K6: •
I7: DM Intake, lb/d | J7: =VLOOKUP(D6,U12:Z45,2,FALSE)*D5 -> 24 | K7: •
K8: •
B9: Diet Formulation | F9: Ingredient | G9: TDN, % | H9: CP, % | V9: Requirements
B10: 1 | C10: Constant ingredient (% DM) | D10: 0 | F10: BLANK | G10: =VLOOKUP(F10,'Feed Library'!C5:F80,4,FALSE) -> 0.1 | H10: =VLOOKUP(F10,'Feed Library'!C5:F80,3,FALSE) -> 0.1 | U10: Stage of Production - Mature Body Weight | V10: DM Intake | W10: CP | X10: TDN | Y10: Ca | Z10: P
B11: 2 | C11: Forage/Roughage | F11: Bermudagrass Hay, Average | G11: =VLOOKUP(F11,'Feed Library'!C5:F80,4,FALSE) -> 55 | H11: =VLOOKUP(F11,'Feed Library'!C5:F80,3,FALSE) -> 9 | J11: NO SUPPLEMENT NEEDED: | U11: BROOD COWS | AH11: Brood Cow | AW11: % of ration | AX11: lb/ton
B12: 3 | C12: Energy Source | F12: Soybean Hulls | G12: =VLOOKUP(F12,'Feed Library'!C5:F80,4,FALSE) -> 78 | H12: =VLOOKUP(F12,'Feed Library'!C5:F80,3,FALSE) -> 12 | J12: FORAGE MEETS | U12: Dry Cow (Post Weaning) | AH12: Heifer | AO12: % in diet | AS12: Base Diet | AT12: =D20 -> 0.1843478261 | AV12: =ABS(AU13-AT14) -> 38.72347826 | AW12: =AV12/AV15 -> 0.9976253416 | AX12: =AW12*2002 -> 1997.245934 | AZ12: =((AW12*AT12)+(AW14*AT14))/D20 -> 1.5
B13: 4 | C13: Protein Source | F13: Corn Gluten Feed | G13: =VLOOKUP(F13,'Feed Library'!C5:F80,4,FALSE) -> 83 | H13: =VLOOKUP(F13,'Feed Library'!C5:F80,3,FALSE) -> 21 | J13: NUTRIENT REQUIREMENTS! | U13: Dry Cow BW-1000 | V13: 0.0181 | W13: 7 | X13: 48 | Y13: 0.2 | Z13: 0.2 | AL13: =VLOOKUP(F11,'Feed Library'!C5:F80,4,FALSE) -> 55 | AN13: =ABS(AM15-AL17) -> 18 | AO13: =(AN13/(AN13+AN17))*(1-G18) -> 0.7826086957 | AU13: =D20*1.5 -> 0.2765217391
U14: Dry Cow BW-1200 | V14: 0.0186 | W14: 7 | X14: 48 | Y14: 0.2 | Z14: 0.2 | AS14: Limestone | AT14: 39 | AV14: =ABS(AU13-AT12) -> 0.09217391304 | AW14: =AV14/AV15 -> 0.002374658363 | AX14: =AW14*2000 -> 4.749316726
U15: Dry Cow BW-1400 | V15: 0.0178 | W15: 7 | X15: 48 | Y15: 0.2 | Z15: 0.2 | AM15: =((VLOOKUP(D6,U12:X45,4,FALSE)-(VLOOKUP(F10,'Feed Library'!C5:F80,4,FALSE)*G18)))/(1-D10) -> 60 | AV15: =SUM(AV12:AV14) -> 38.81565217
B16: CHEMICAL COMPOSITION | F16: BASE DIET | J16: -----Total Mixed Ration----- | M16: Grazing or Free Choice Forage | U16: Late Gestation (3 mo pre-calving)
B17: TDN | D17: =((VLOOKUP(F18,'Feed Library'!C5:F80,4,FALSE)*G18)+(AL13*G19)+(AL17*G20)) -> 60 | F17: Ingredient | G17: DM % | H17: AF % | I17: lb/ton | J17: lb/hd/d | K17: lb/group/d | L17: lb/ton | M17: lb/hd/d | N17: lb/group/d | U17: Late Gestation BW-1000 | V17: 0.0196 | W17: 8 | X17: 53 | Y17: 0.26 | Z17: 0.21 | AL17: =VLOOKUP(F12,'Feed Library'!C5:F80,4,FALSE) -> 78 | AN17: =ABS(AM15-AL13) -> 5 | AO17: =(AN17/(AN17+AN13))*(1-G18) -> 0.2173913043
B18: CP | D18: =(VLOOKUP(F18,'Feed Library'!C5:F80,3,FALSE)*G18)+(VLOOKUP(F19,'Feed Library'!C5:F80,3,FALSE)*G19)+(VLOOKUP(F20,'Feed Library'!C5:F80,3,FALSE)*G20) -> 9.652173913 | E18: 1 | F18: =F10 -> BLANK | G18: =D10 -> 0 | H18: =J18/J21 -> 0 | I18: =H18*2000 -> 0 | J18: =IF(D10=0,0,((G18*(J7))/(VLOOKUP(F18,'Feed Library'!C5:F80,2, FALSE)/100))) -> 0 | K18: =J18*D4 -> 0 | L18: =IF(H18=0,0,((H18/(H18+H20))*2000)) -> 0 | M18: =J18 -> 0 | N18: =M18*D4 -> 0 | U18: Late Gestation BW-1200 | V18: 0.0186 | W18: 8 | X18: 53 | Y18: 0.26 | Z18: 0.21
B19: Ca | D19: =(VLOOKUP(F18,'Feed Library'!C5:I80,5,FALSE)*G18)+(VLOOKUP(F19,'Feed Library'!C5:I80,5,FALSE)*G19)+(VLOOKUP(F20,'Feed Library'!C5:I80,5,FALSE)*G20) -> 0.4013043478 | E19: 2 | F19: =F11 -> Bermudagrass Hay, Average | G19: =IF(AL17>1,AO13,(1-D10)) -> 0.7826086957 | H19: =J19/J21 -> 0.7921760391 | I19: =H19*2000 -> 1584.352078 | J19: =G19*(J7)/(VLOOKUP(F19,'Feed Library'!C5:F80,2, FALSE)/100) -> 22.0971867 | K19: =J19*D4 -> 5524.296675 | L19: - | M19: - | N19: - | U19: Late Gestation BW-1400 | V19: 0.0178 | W19: 8 | X19: 53 | Y19: 0.26 | Z19: 0.21
B20: P | D20: =(VLOOKUP(F18,'Feed Library'!C5:I80,6,FALSE)*G18)+(VLOOKUP(F19,'Feed Library'!C5:I80,6,FALSE)*G19)+(VLOOKUP(F20,'Feed Library'!C5:I80,6,FALSE)*G20) -> 0.1843478261 | E20: 3 | F20: =F12 -> Soybean Hulls | G20: =IF(AL17>1,AO17,0) -> 0.2173913043 | H20: =J20/J21 -> 0.2078239609 | I20: =H20*2000 -> 415.6479218 | J20: =IF(AL17>0,(G20*(J7)/(VLOOKUP(F20,'Feed Library'!C5:F80,2, FALSE)/100)),0) -> 5.797101449 | K20: =J20*D4 -> 1449.275362 | L20: =IF(H20=0,0,((H20/(H18+H20))*2000)) -> 2000 | M20: =J20 -> 5.797101449 | N20: =M20*D4 -> 1449.275362 | U20: Peak Lactation (First 3 mo post-calving) | AO20: % in diet
B21: $/ton | D21: =(VLOOKUP(F18,'Feed Library'!C5:I80,7,FALSE)*H18)+(VLOOKUP(F19,'Feed Library'!C5:I80,7,FALSE)*H19)+(VLOOKUP(F20,'Feed Library'!C5:I80,7,FALSE)*H20) -> 109.7432763 | F21: Total | G21: =SUM(G18:G20) -> 1 | H21: 1 | I21: 2000 | J21: =SUM(J18:J20) -> 27.89428815 | K21: 6973.572038 | L21: 2000 | M21: =SUM(M18:M20) -> 5.797101449 | N21: =SUM(N18:N20) -> 1449.275362 | U21: Peak Lactation BW-1000 | V21: 0.021 | W21: 11 | X21: 60 | Y21: 0.28 | Z21: 0.19 | AL21: =IF(AL17=0.1,VLOOKUP(F11,'Feed Library'!C5:F80,3,FALSE),(VLOOKUP(F11,'Feed Library'!C5:F80,3,FALSE)*(AO13/(AO17+AO13)))+(VLOOKUP(F12,'Feed Library'!C5:F80,3,FALSE)*(AO17/(AO17+AO13)))) -> 9.652173913 | AN21: =ABS(AM23-AL25) -> 10.5 | AO21: =AN21/(AN21+AN25) -> 0.9252873563 | AS21: Final Diet | AT21: =D29 -> 0.3772988506 | AV21: =ABS(AU22-AT23) -> 38.68362069 | AW21: =AV21/AV24 -> 0.9984276613 | AX21: =AW21*2002 -> 1998.852178 | AZ21: =((AW21*AT21)+(AW23*AT23))/D29 -> 1.160954553
B22: $/hd/d | D22: =(D21/2000)*J21 -> 1.530605286 | U22: Peak Lactation BW-1200 | V22: 0.02 | W22: 10.5 | X22: 60 | Y22: 0.28 | Z22: 0.19 | AU22: =D30*1.5 -> 0.3163793103
B23: Ca:P | D23: =D19/D20 -> 2.176886792 | U23: Peak Lactation BW-1400 | V23: 0.0191 | W23: 10 | X23: 60 | Y23: 0.28 | Z23: 0.18 | AM23: =(((VLOOKUP(D6,U12:X45,3,FALSE)-(VLOOKUP(F10,'Feed Library'!C5:F80,3,FALSE)*G18))))/(1-D10) -> 10.5 | AS23: Limestone | AT23: 39 | AV23: =ABS(AU22-AT21) -> 0.06091954023 | AW23: =AV23/AV24 -> 0.001572338705 | AX23: =AW23*2000 -> 3.144677411
U24: Late Lactation (Last 3 mo pre-weaning) | AV24: =SUM(AV21:AV23) -> 38.74454023
U25: Late Lactation BW-1000 | V25: 0.022 | W25: 9 | X25: 55 | Y25: 0.24 | Z25: 0.17 | AL25: =VLOOKUP(F13,'Feed Library'!C5:F80,3,FALSE) -> 21 | AN25: =ABS(AM23-AL21) -> 0.847826087 | AO25: =AN25/(AN25+AN21) -> 0.07471264368
B26: CHEMICAL COMPOSITION | F26: FINAL DIET | J26: -----Total Mixed Ration----- | M26: Grazing or Free Choice Forage | U26: Late Lactation BW-1200 | V26: 0.0213 | W26: 9 | X26: 54.5 | Y26: 0.24 | Z26: 0.17
B27: TDN | D27: =(VLOOKUP(F10,'Feed Library'!C5:F80,4,FALSE)*G28)+(AL13*G29)+(AL17*G30)+(VLOOKUP(F13,'Feed Library'!C5:F80,4,FALSE)*G31) -> 61.7183908 | F27: Ingredient | G27: DM % | H27: AF % | I27: lb/ton | J27: lb/hd/d | K27: lb/group/d | L27: lb/ton | M27: lb/hd/d | N27: lb/group/d | U27: Late Lactation BW-1400 | V27: 0.0207 | W27: 9 | X27: 54 | Y27: 0.24 | Z27: 0.17
B28: CP | D28: =(VLOOKUP(F28,'Feed Library'!C5:F80,3,FALSE)*G28)+(VLOOKUP(F29,'Feed Library'!C5:F80,3,FALSE)*G29)+(VLOOKUP(F30,'Feed Library'!C5:F80,3,FALSE)*G30)+(VLOOKUP(F31,'Feed Library'!C5:F80,3,FALSE)*G31) -> 10.5 | E28: 1 | F28: =F10 -> BLANK | G28: =D10 -> 0 | H28: =J28/J32 -> 0 | I28: =H28*2000 -> 0 | J28: =IF(D10=0,0,((G28*(J7))/(VLOOKUP(F28,'Feed Library'!C5:F80,2, FALSE)/100))) -> 0 | K28: =J28*D4 -> 0 | L28: =(H28/($H$28+$H$30+$H$31))*2000 -> 0 | M28: =J28 -> 0 | N28: =M28*D4 -> 0
B29: Ca | D29: =(VLOOKUP(F28,'Feed Library'!C5:I80,5,FALSE)*G28)+(VLOOKUP(F11,'Feed Library'!C5:I80,5,FALSE)*G29)+(VLOOKUP(F12,'Feed Library'!C5:I80,5,FALSE)*G30)+(VLOOKUP(F13,'Feed Library'!C5:I80,5,FALSE)*G31) -> 0.3772988506 | E29: 2 | F29: =F11 -> Bermudagrass Hay, Average | G29: =IF(AL17>1,(AO13*AO21),((1-D10)*AO21)) -> 0.724137931 | H29: =J29/J32 -> 0.7354085603 | I29: =H29*2000 -> 1470.817121 | J29: =(G29*(J7))/(VLOOKUP(F29,'Feed Library'!C5:F80,2, FALSE)/100) -> 20.44624746 | K29: =J29*D4 -> 5111.561866 | L29: - | M29: - | N29: - | U29: User Defined | V29: - | W29: - | X29: - | Y29: - | Z29: -
B30: P | D30: =(VLOOKUP(F28,'Feed Library'!C5:I80,6,FALSE)*G28)+(VLOOKUP(F11,'Feed Library'!C5:I80,6,FALSE)*G29)+(VLOOKUP(F12,'Feed Library'!C5:I80,6,FALSE)*G30)+(VLOOKUP(F13,'Feed Library'!C5:I80,6,FALSE)*G31) -> 0.2109195402 | E30: 3 | F30: =F12 -> Soybean Hulls | G30: =IF(AL17>1,(AO17*AO21),AO22) -> 0.2011494253 | H30: =J30/J32 -> 0.1929312581 | I30: =H30*2000 -> 385.8625162 | J30: =IF(AL17>0,(G30*(J7)/(VLOOKUP(F30,'Feed Library'!C5:F80,2, FALSE)/100)),0) -> 5.363984674 | K30: =J30*D4 -> 1340.996169 | L30: =(H30/($H$28+$H$30+$H$31))*2000 -> 1458.333333 | M30: =J30 -> 5.363984674 | N30: =M30*D4 -> 1340.996169
B31: $/ton | D31: =(VLOOKUP(F28,'Feed Library'!C5:I80,7,FALSE)*H28)+(VLOOKUP(F29,'Feed Library'!C5:I80,7,FALSE)*H29)+(VLOOKUP(F30,'Feed Library'!C5:I80,7,FALSE)*H30)+(VLOOKUP(F31,'Feed Library'!C5:I80,7,FALSE)*H31) -> 114.7778859 | E31: 4 | F31: =F13 -> Corn Gluten Feed | G31: =AO25*(1-G28) -> 0.07471264368 | H31: =J31/J32 -> 0.07166018158 | I31: =H31*2000 -> 143.3203632 | J31: =(G31*(J7))/(VLOOKUP(F31,'Feed Library'!C5:F80,2, FALSE)/100) -> 1.992337165 | K31: =J31*D4 -> 498.0842912 | L31: =(H31/($H$28+$H$30+$H$31))*2000 -> 541.6666667 | M31: =J31 -> 1.992337165 | N31: =M31*D4 -> 498.0842912
B32: $/hd/d | D32: =D31/2000*J32 -> 1.595560063 | F32: Total | G32: =SUM(G28:G31) -> 1 | H32: =SUM(H28:H31) -> 1 | I32: 2000 | J32: 27.8025693 | K32: 6950.642326 | L32: 2000 | M32: 7.356321839 | N32: =SUM(N28:N31) -> 1839.08046
B33: Ca:P | D33: =D29/D30 -> 1.788828338
B35: NOT ENOUGH | E35: ADJUST MINERAL TO INCREASE | G35: ADJUST MINERAL TO INCREASE
B36: ENERGY AVAILABLE | E36: Ca:P RATIO To 1.5 | G36: Ca:P RATIO TO 1.5
B37: IN DIET | E37: Limestone needed: | G37: Limestone needed:
E38: =AX23 -> 3.144677411 | F38: Lb/ton TMR | G38: =AX14 -> 4.749316726 | H38: Lb/ton TMR
E39: =E38/(E38+I28+I30+I31)*2000 -> 11.81482105 | F39: Lb/ton Grazing or FC Forage | G39: =G38/(G38+I18+I20)*2000 -> 22.59442399 | H39: Lb/ton Grazing or FC Forage
I98: Brood Cow Ration
I99: Date | J99: =TODAY() -> 2020-09-29
I100: Producer | J100: =D3 -> UGA Farms
I101: County | J101: =Program!O14 -> Simmental
I102: Agent | J102: =Program!O15 -> Joe Angus
I103: Local Contact | J103: =Program!O16 -> 706-542-1852 | O103: 1-800-ASK-UGA1
I106: Description: | O106: REQUIREMENTS:
I107: =C4 -> Group Size | J107: 250 | O107: TDN, % | Q107: =J3 -> 60
I108: Avg Weight | J108: 1200 | O108: CP, % | Q108: =J4 -> 10.5
I109: Target Gain | J109: Peak Lactation BW-1200 | O109: Ca, % | Q109: =J5 -> 0.28
O110: P, % | Q110: =J6 -> 0.19
O111: DM Intake, lb/d | Q111: =J7 -> 24
I115: CHEMICAL COMPOSITION | L115: RATION | P115: =J16 -> -----Total Mixed Ration----- | T115: =M16 -> Grazing or Free Choice Forage
I116: =IF($D$18>($J$4-0.01),B17,B27) -> TDN | J116: =IF($D$18>($J$4-0.01),D17,D27) -> 61.7183908 | L116: =IF($D$18>($J$4-0.01),F17,F27) -> Ingredient | M116: DM % | N116: AF % | O116: lb/ton | P116: lb/hd/d | Q116: lb/group/d | R116: lb/ton | S116: lb/hd/d | T116: lb/group/d
I117: =IF($D$18>($J$4-0.01),B18,B28) -> CP | J117: =IF($D$18>($J$4-0.01),D18,D28) -> 10.5 | K117: 1 | L117: BLANK | M117: 0 | N117: 0 | O117: 0 | P117: 0 | Q117: 0 | R117: 0 | S117: 0 | T117: 0
I118: =IF($D$18>($J$4-0.01),B19,B29) -> Ca | J118: =IF($D$18>($J$4-0.01),D19,D29) -> 0.3772988506 | K118: 2 | L118: Bermudagrass Hay, Average | M118: 0.724137931 | N118: 0.7354085603 | O118: 1470.817121 | P118: 20.44624746 | Q118: 5111.561866 | R118: - | S118: - | T118: -
I119: =IF($D$18>($J$4-0.01),B20,B30) -> P | J119: =IF($D$18>($J$4-0.01),D20,D30) -> 0.2109195402 | K119: 3 | L119: Soybean Hulls | M119: 0.2011494253 | N119: 0.1929312581 | O119: 385.8625162 | P119: 5.363984674 | Q119: 1340.996169 | R119: 1458.333333 | S119: 5.363984674 | T119: 1340.996169
I120: =IF($D$18>($J$4-0.01),B23,B33) -> Ca:P | J120: =IF($D$18>($J$4-0.01),D23,D33) -> 1.788828338 | K120: 4 | L120: =IF($D$18>($J$4-0.01),N142,F31) -> Corn Gluten Feed | M120: =IF($D$18>($J$4-0.01),N142,G31) -> 0.07471264368 | N120: =IF($D$18>($J$4-0.01),O142,H31) -> 0.07166018158 | O120: =IF($D$18>($J$4-0.01),Y122,I31) -> 143.3203632 | P120: =IF($D$18>($J$4-0.01),Z122,J31) -> 1.992337165 | Q120: =IF($D$18>($J$4-0.01),AA121,K31) -> 498.0842912 | R120: =IF($D$18>($J$4-0.01),Y122,L31) -> 541.6666667 | S120: =IF($D$18>($J$4-0.01),Z122,M31) -> 1.992337165 | T120: =IF($D$18>($J$4-0.01),AB121,N31) -> 498.0842912
I121: =IF($D$18>($J$4-0.01),B21,B31) -> $/ton | J121: =IF($D$18>($J$4-0.01),D21,D31) -> 114.7778859 | L121: Total | M121: =SUM(M117:M120) -> 1 | N121: 1 | O121: 2000 | P121: 27.8025693 | Q121: 6950.642326 | R121: 2000 | S121: 7.356321839 | T121: 1839.08046 | AA121: - | AB121: - | AC121: -
I122: =IF($D$18>($J$4-0.01),B22,B32) -> $/hd/d | J122: =IF($D$18>($J$4-0.01),D22,D32) -> 1.595560063 | Y122: - | Z122: -
I124: Limestone needed: | L124: Limestone needed:
I125: =G38 -> 4.749316726 | J125: =H38 -> Lb/ton TMR | L125: =E38 -> 3.144677411 | M125: =F38 -> Lb/ton TMR
I126: =G39 -> 22.59442399 | J126: =H39 -> Lb/ton Grazing or FC Forage | L126: =E39 -> 11.81482105 | M126: =F39 -> Lb/ton Grazing or FC Forage
I131: Notes:
I132: • | J132: =IF(L3="","",L3) -> 
I133: •
I134: •
I135: •
I136: •
I137: •
N142: - | O142: - | P142: - | Q142: - | R142: -

Sheet Bulls
C1: UGA Basic Balancer - Bulls
C2: Description | I2: REQUIREMENTS: | K2: Notes:
C3: Farm | D3: UGA Farms | I3: TDN, % | J3: =VLOOKUP(D6,U12:Z45,4,FALSE) -> 76.5 | K3: •
C4: Group Size | D4: 10 | I4: CP, % | J4: =VLOOKUP(D6,U12:Z45,3,FALSE) -> 10.8 | K4: •
C5: Avg Weight | D5: 800 | I5: Ca, % | J5: =VLOOKUP(D6,U10:Z45,5,FALSE) -> 0.44 | K5: •
C6: Target Gain | D6: BW-800 ADG-3.0 | I6: P, % | J6: =VLOOKUP(D6,U12:Z45,6,FALSE) -> 0.24 | K6: •
I7: DM Intake, lb/d | J7: =VLOOKUP(D6,U12:Z45,2,FALSE)*D5 -> 18.2 | K7: •
K8: •
B9: Diet Formulation | F9: Ingredient | G9: TDN, % | H9: CP, % | V9: Requirements
B10: 1 | C10: Constant ingredient (% DM) | D10: 0 | F10: Corn | G10: =VLOOKUP(F10,'Feed Library'!C5:F80,4,FALSE) -> 90 | H10: =VLOOKUP(F10,'Feed Library'!C5:F80,3,FALSE) -> 9 | U10: ADG | V10: DM Intake | W10: CP | X10: TDN | Y10: Ca | Z10: P
B11: 2 | C11: Forage/Roughage | F11: Bermudagrass Hay, Average | G11: =VLOOKUP(F11,'Feed Library'!C5:F80,4,FALSE) -> 55 | H11: =VLOOKUP(F11,'Feed Library'!C5:F80,3,FALSE) -> 9 | J11: NO SUPPLEMENT NEEDED: | U11: BW 400 lb | AH11: Brood Cow | AW11: % of ration | AX11: lb/ton
B12: 3 | C12: Energy Source | F12: Soybean Hulls | G12: =VLOOKUP(F12,'Feed Library'!C5:F80,4,FALSE) -> 78 | H12: =VLOOKUP(F12,'Feed Library'!C5:F80,3,FALSE) -> 12 | J12: FORAGE MEETS | U12: BW-400 ADG-1.0 | V12: 0.0258 | W12: 11.6 | X12: 57.5 | Y12: 0.39 | Z12: 0.21 | AH12: Heifer | AO12: % in diet | AS12: Base Diet | AT12: =D20 -> 0.1986956522 | AV12: =ABS(AU13-AT14) -> 38.70195652 | AW12: =AV12/AV15 -> 0.9974395751 | AX12: =AW12*2002 -> 1996.874029 | AZ12: =((AW12*AT12)+(AW14*AT14))/D20 -> 1.5
B13: 4 | C13: Protein Source | F13: Corn Gluten Feed | G13: =VLOOKUP(F13,'Feed Library'!C5:F80,4,FALSE) -> 83 | H13: =VLOOKUP(F13,'Feed Library'!C5:F80,3,FALSE) -> 21 | J13: NUTRIENT REQUIREMENTS! | U13: BW-400 ADG-1.5 | V13: 0.0268 | W13: 13.4 | X13: 61.5 | Y13: 0.49 | Z13: 0.25 | AL13: =VLOOKUP(F11,'Feed Library'!C5:F80,4,FALSE) -> 55 | AN13: =ABS(AM15-AL17) -> 1.5 | AO13: =(AN13/(AN13+AN17))*(1-G18) -> 0.0652173913 | AU13: =D20*1.5 -> 0.2980434783
U14: BW-400 ADG-2.0 | V14: 0.0275 | W14: 15.2 | X14: 65.5 | Y14: 0.6 | Z14: 0.28 | AS14: Limestone | AT14: 39 | AV14: =ABS(AU13-AT12) -> 0.09934782609 | AW14: =AV14/AV15 -> 0.002560424907 | AX14: =AW14*2000 -> 5.120849815
U15: BW-400 ADG-2.5 | V15: 0.0278 | W15: 17 | X15: 70 | Y15: 0.7 | Z15: 0.32 | AM15: =((VLOOKUP(D6,U12:X45,4,FALSE)-(VLOOKUP(F10,'Feed Library'!C5:F80,4,FALSE)*G18)))/(1-D10) -> 76.5 | AV15: =SUM(AV12:AV14) -> 38.80130435
B16: CHEMICAL COMPOSITION | F16: BASE DIET | J16: -----Total Mixed Ration----- | M16: Grazing or Free Choice Forage | U16: BW-400 ADG-3.0 | V16: 0.027 | W16: 19.3 | X16: 76.5 | Y16: 0.84 | Z16: 0.37
B17: TDN | D17: =((VLOOKUP(F18,'Feed Library'!C5:F80,4,FALSE)*G18)+(AL13*G19)+(AL17*G20)) -> 76.5 | F17: Ingredient | G17: DM % | H17: AF % | I17: lb/ton | J17: lb/hd/d | K17: lb/group/d | L17: lb/ton | M17: lb/hd/d | N17: lb/group/d | U17: BW 600 lb | AL17: =VLOOKUP(F12,'Feed Library'!C5:F80,4,FALSE) -> 78 | AN17: =ABS(AM15-AL13) -> 21.5 | AO17: =(AN17/(AN17+AN13))*(1-G18) -> 0.9347826087
B18: CP | D18: =(VLOOKUP(F18,'Feed Library'!C5:F80,3,FALSE)*G18)+(VLOOKUP(F19,'Feed Library'!C5:F80,3,FALSE)*G19)+(VLOOKUP(F20,'Feed Library'!C5:F80,3,FALSE)*G20) -> 11.80434783 | E18: 1 | F18: =F10 -> Corn | G18: =D10 -> 0 | H18: =J18/J21 -> 0 | I18: =H18*2000 -> 0 | J18: =IF(D10=0,0,((G18*(J7))/(VLOOKUP(F18,'Feed Library'!C5:F80,2, FALSE)/100))) -> 0 | K18: =J18*D4 -> 0 | L18: =IF(H18=0,0,((H18/(H18+H20))*2000)) -> 0 | M18: =J18 -> 0 | N18: =M18*D4 -> 0 | U18: BW-600 ADG-1.0 | V18: 0.0232 | W18: 9.2 | X18: 57.5 | Y18: 0.3 | Z18: 0.79
B19: Ca | D19: =(VLOOKUP(F18,'Feed Library'!C5:I80,5,FALSE)*G18)+(VLOOKUP(F19,'Feed Library'!C5:I80,5,FALSE)*G19)+(VLOOKUP(F20,'Feed Library'!C5:I80,5,FALSE)*G20) -> 0.5376086957 | E19: 2 | F19: =F11 -> Bermudagrass Hay, Average | G19: =IF(AL17>1,AO13,(1-D10)) -> 0.0652173913 | H19: =J19/J21 -> 0.06878980892 | I19: =H19*2000 -> 137.5796178 | J19: =G19*(J7)/(VLOOKUP(F19,'Feed Library'!C5:F80,2, FALSE)/100) -> 1.396419437 | K19: =J19*D4 -> 13.96419437 | L19: - | M19: - | N19: - | U19: BW-600 ADG-1.5 | V19: 0.0242 | W19: 10 | X19: 61.5 | Y19: 0.36 | Z19: 0.21
B20: P | D20: =(VLOOKUP(F18,'Feed Library'!C5:I80,6,FALSE)*G18)+(VLOOKUP(F19,'Feed Library'!C5:I80,6,FALSE)*G19)+(VLOOKUP(F20,'Feed Library'!C5:I80,6,FALSE)*G20) -> 0.1986956522 | E20: 3 | F20: =F12 -> Soybean Hulls | G20: =IF(AL17>1,AO17,0) -> 0.9347826087 | H20: =J20/J21 -> 0.9312101911 | I20: =H20*2000 -> 1862.420382 | J20: =IF(AL17>0,(G20*(J7)/(VLOOKUP(F20,'Feed Library'!C5:F80,2, FALSE)/100)),0) -> 18.90338164 | K20: =J20*D4 -> 189.0338164 | L20: =IF(H20=0,0,((H20/(H18+H20))*2000)) -> 2000 | M20: =J20 -> 18.90338164 | N20: =M20*D4 -> 189.0338164 | U20: BW-600 ADG-2.0 | V20: 0.0248 | W20: 10.8 | X20: 65.5 | Y20: 0.43 | Z20: 0.24 | AO20: % in diet
B21: $/ton | D21: =(VLOOKUP(F18,'Feed Library'!C5:I80,7,FALSE)*H18)+(VLOOKUP(F19,'Feed Library'!C5:I80,7,FALSE)*H19)+(VLOOKUP(F20,'Feed Library'!C5:I80,7,FALSE)*H20) -> 178.4649682 | F21: Total | G21: =SUM(G18:G20) -> 1 | H21: 1 | I21: 2000 | J21: =SUM(J18:J20) -> 20.29980108 | K21: 202.9980108 | L21: 2000 | M21: =SUM(M18:M20) -> 18.90338164 | N21: =SUM(N18:N20) -> 189.0338164 | U21: BW-600 ADG-2.5 | V21: 0.025 | W21: 11.6 | X21: 70 | Y21: 0.5 | Z21: 0.25 | AL21: =IF(AL17=0.1,VLOOKUP(F11,'Feed Library'!C5:F80,3,FALSE),(VLOOKUP(F11,'Feed Library'!C5:F80,3,FALSE)*(AO13/(AO17+AO13)))+(VLOOKUP(F12,'Feed Library'!C5:F80,3,FALSE)*(AO17/(AO17+AO13)))) -> 11.80434783 | AN21: =ABS(AM23-AL25) -> 10.2 | AO21: =AN21/(AN21+AN25) -> 0.9103608847 | AS21: Final Diet | AT21: =D29 -> 0.496589057 | AV21: =ABS(AU22-AT23) -> 38.65606519 | AW21: =AV21/AV24 -> 0.9960664961 | AX21: =AW21*2002 -> 1994.125125 | AZ21: =((AW21*AT21)+(AW23*AT23))/D29 -> 1.304987222
B22: $/hd/d | D22: =(D21/2000)*J21 -> 1.811401677 | U22: BW-600 ADG-3.0 | V22: 0.0245 | W22: 12.7 | X22: 76.5 | Y22: 0.57 | Z22: 0.29 | AU22: =D30*1.5 -> 0.3439348079
B23: Ca:P | D23: =D19/D20 -> 2.705689278 | U23: BW 800 lb | AM23: =(((VLOOKUP(D6,U12:X45,3,FALSE)-(VLOOKUP(F10,'Feed Library'!C5:F80,3,FALSE)*G18))))/(1-D10) -> 10.8 | AS23: Limestone | AT23: 39 | AV23: =ABS(AU22-AT21) -> 0.1526542491 | AW23: =AV23/AV24 -> 0.003933503896 | AX23: =AW23*2000 -> 7.867007792
U24: BW-800 ADG-1.0 | V24: 0.0216 | W24: 8.4 | X24: 57.5 | Y24: 0.25 | Z24: 0.19 | AV24: =SUM(AV21:AV23) -> 38.80871944
U25: BW-800 ADG-1.5 | V25: 0.0225 | W25: 9 | X25: 61.5 | Y25: 0.29 | Z25: 0.2 | AL25: =VLOOKUP(F13,'Feed Library'!C5:F80,3,FALSE) -> 21 | AN25: =ABS(AM23-AL21) -> 1.004347826 | AO25: =AN25/(AN25+AN21) -> 0.08963911525
B26: CHEMICAL COMPOSITION | F26: FINAL DIET | J26: -----Total Mixed Ration----- | M26: Grazing or Free Choice Forage | U26: BW-800 ADG-2.0 | V26: 0.0231 | W26: 9.5 | X26: 65.5 | Y26: 0.33 | Z26: 0.21
B27: TDN | D27: =(VLOOKUP(F10,'Feed Library'!C5:F80,4,FALSE)*G28)+(AL13*G29)+(AL17*G30)+(VLOOKUP(F13,'Feed Library'!C5:F80,4,FALSE)*G31) -> 77.08265425 | F27: Ingredient | G27: DM % | H27: AF % | I27: lb/ton | J27: lb/hd/d | K27: lb/group/d | L27: lb/ton | M27: lb/hd/d | N27: lb/group/d | U27: BW-800 ADG-2.5 | V27: 0.02325 | W27: 10.1 | X27: 70 | Y27: 0.38 | Z27: 0.23
B28: CP | D28: =(VLOOKUP(F28,'Feed Library'!C5:F80,3,FALSE)*G28)+(VLOOKUP(F29,'Feed Library'!C5:F80,3,FALSE)*G29)+(VLOOKUP(F30,'Feed Library'!C5:F80,3,FALSE)*G30)+(VLOOKUP(F31,'Feed Library'!C5:F80,3,FALSE)*G31) -> 12.62863795 | E28: 1 | F28: =F10 -> Corn | G28: =D10 -> 0 | H28: =J28/J32 -> 0 | I28: =H28*2000 -> 0 | J28: =IF(D10=0,0,((G28*(J7))/(VLOOKUP(F28,'Feed Library'!C5:F80,2, FALSE)/100))) -> 0 | K28: =J28*D4 -> 0 | L28: =(H28/($H$28+$H$30+$H$31))*2000 -> 0 | M28: =J28 -> 0 | N28: =M28*D4 -> 0 | U28: BW-800 ADG-3.0 | V28: 0.02275 | W28: 10.8 | X28: 76.5 | Y28: 0.44 | Z28: 0.24
B29: Ca | D29: =(VLOOKUP(F28,'Feed Library'!C5:I80,5,FALSE)*G28)+(VLOOKUP(F11,'Feed Library'!C5:I80,5,FALSE)*G29)+(VLOOKUP(F12,'Feed Library'!C5:I80,5,FALSE)*G30)+(VLOOKUP(F13,'Feed Library'!C5:I80,5,FALSE)*G31) -> 0.496589057 | E29: 2 | F29: =F11 -> Bermudagrass Hay, Average | G29: =IF(AL17>1,(AO13*AO21),((1-D10)*AO21)) -> 0.05937136205 | H29: =J29/J32 -> 0.0626450116 | I29: =H29*2000 -> 125.2900232 | J29: =(G29*(J7))/(VLOOKUP(F29,'Feed Library'!C5:F80,2, FALSE)/100) -> 1.271245634 | K29: =J29*D4 -> 12.71245634 | L29: - | M29: - | N29: - | U29: BW 1000 lb
B30: P | D30: =(VLOOKUP(F28,'Feed Library'!C5:I80,6,FALSE)*G28)+(VLOOKUP(F11,'Feed Library'!C5:I80,6,FALSE)*G29)+(VLOOKUP(F12,'Feed Library'!C5:I80,6,FALSE)*G30)+(VLOOKUP(F13,'Feed Library'!C5:I80,6,FALSE)*G31) -> 0.2292898719 | E30: 3 | F30: =F12 -> Soybean Hulls | G30: =IF(AL17>1,(AO17*AO21),AO22) -> 0.8509895227 | H30: =J30/J32 -> 0.8480278422 | I30: =H30*2000 -> 1696.055684 | J30: =IF(AL17>0,(G30*(J7)/(VLOOKUP(F30,'Feed Library'!C5:F80,2, FALSE)/100)),0) -> 17.20889924 | K30: =J30*D4 -> 172.0889924 | L30: =(H30/($H$28+$H$30+$H$31))*2000 -> 1809.405941 | M30: =J30 -> 17.20889924 | N30: =M30*D4 -> 172.0889924 | U30: BW-1000 ADG-1.0 | V30: 0.0204 | W30: 8 | X30: 57.5 | Y30: 0.24 | Z30: 0.19
B31: $/ton | D31: =(VLOOKUP(F28,'Feed Library'!C5:I80,7,FALSE)*H28)+(VLOOKUP(F29,'Feed Library'!C5:I80,7,FALSE)*H29)+(VLOOKUP(F30,'Feed Library'!C5:I80,7,FALSE)*H30)+(VLOOKUP(F31,'Feed Library'!C5:I80,7,FALSE)*H31) -> 178.6020882 | E31: 4 | F31: =F13 -> Corn Gluten Feed | G31: =AO25*(1-G28) -> 0.08963911525 | H31: =J31/J32 -> 0.08932714617 | I31: =H31*2000 -> 178.6542923 | J31: =(G31*(J7))/(VLOOKUP(F31,'Feed Library'!C5:F80,2, FALSE)/100) -> 1.812702108 | K31: =J31*D4 -> 18.12702108 | L31: =(H31/($H$28+$H$30+$H$31))*2000 -> 190.5940594 | M31: =J31 -> 1.812702108 | N31: =M31*D4 -> 18.12702108 | U31: BW-1000 ADG-1.5 | V31: 0.0213 | W31: 8.4 | X31: 61.5 | Y31: 0.26 | Z31: 0.19
B32: $/hd/d | D32: =D31/2000*J32 -> 1.812172423 | F32: Total | G32: =SUM(G28:G31) -> 1 | H32: =SUM(H28:H31) -> 1 | I32: 2000 | J32: 20.29284698 | K32: 202.9284698 | L32: 2000 | M32: 19.02160135 | N32: =SUM(N28:N31) -> 190.2160135 | U32: BW-1000 ADG-2.0 | V32: 0.0218 | W32: 8.7 | X32: 65.5 | Y32: 0.28 | Z32: 0.19
B33: Ca:P | D33: =D29/D30 -> 2.165769699 | U33: BW-1000 ADG-2.5 | V33: 0.022 | W33: 9.1 | X33: 70 | Y33: 0.31 | Z33: 0.2
U34: BW-1000 ADG-3.0 | V34: 0.0215 | W34: 9.6 | X34: 76.5 | Y34: 35 | Z34: 0.21
B35: NOT ENOUGH | E35: ADJUST MINERAL TO INCREASE | G35: ADJUST MINERAL TO INCREASE
B36: ENERGY AVAILABLE | E36: Ca:P RATIO To 1.5 | G36: Ca:P RATIO TO 1.5 | U36: BW-1500 ADG-2.0 | V36: 0.017 | W36: 6.1 | X36: 65 | Y36: 0.22 | Z36: 0.19
B37: IN DIET | E37: Limestone needed: | G37: Limestone needed:
E38: =AX23 -> 7.867007792 | F38: Lb/ton TMR | G38: =AX14 -> 5.120849815 | H38: Lb/ton TMR | U38: BW-2000 ADG-0.0 | V38: 0.021 | W38: 6.8 | X38: 48.5 | Y38: 0.22 | Z38: 0.19
E39: =E38/(E38+I28+I30+I31)*2000 -> 8.35770102 | F39: Lb/ton Grazing or FC Forage | G39: =G38/(G38+I18+I20)*2000 -> 5.484055427 | H39: Lb/ton Grazing or FC Forage
U40: User Defined | W40: - | X40: - | Y40: - | Z40: -
I98: Bull Ration
I99: Date | J99: =TODAY() -> 2020-09-29
I100: Producer | J100: =D3 -> UGA Farms
I101: County | J101: =Program!O14 -> Simmental
I102: Agent | J102: =Program!O15 -> Joe Angus
I103: Local Contact | J103: =Program!O16 -> 706-542-1852 | O103: 1-800-ASK-UGA1
I106: Description: | O106: REQUIREMENTS:
I107: =C4 -> Group Size | J107: 10 | O107: TDN, % | Q107: =J3 -> 76.5
I108: Avg Weight | J108: 800 | O108: CP, % | Q108: =J4 -> 10.8
I109: Target Gain | J109: BW-800 ADG-3.0 | O109: Ca, % | Q109: =J5 -> 0.44
O110: P, % | Q110: =J6 -> 0.24
O111: DM Intake, lb/d | Q111: =J7 -> 18.2
I115: CHEMICAL COMPOSITION | L115: RATION | P115: =J16 -> -----Total Mixed Ration----- | T115: =M16 -> Grazing or Free Choice Forage
I116: =IF($D$18>($J$4-0.01),B17,B27) -> TDN | J116: =IF($D$18>($J$4-0.01),D17,D27) -> 76.5 | L116: =IF($D$18>($J$4-0.01),F17,F27) -> Ingredient | M116: DM % | N116: AF % | O116: lb/ton | P116: lb/hd/d | Q116: lb/group/d | R116: lb/ton | S116: lb/hd/d | T116: lb/group/d
I117: =IF($D$18>($J$4-0.01),B18,B28) -> CP | J117: =IF($D$18>($J$4-0.01),D18,D28) -> 11.80434783 | K117: 1 | L117: Corn | M117: 0 | N117: 0 | O117: 0 | P117: 0 | Q117: 0 | R117: 0 | S117: 0 | T117: 0
I118: =IF($D$18>($J$4-0.01),B19,B29) -> Ca | J118: =IF($D$18>($J$4-0.01),D19,D29) -> 0.5376086957 | K118: 2 | L118: Bermudagrass Hay, Average | M118: 0.0652173913 | N118: 0.06878980892 | O118: 137.5796178 | P118: 1.396419437 | Q118: 13.96419437 | R118: - | S118: - | T118: -
I119: =IF($D$18>($J$4-0.01),B20,B30) -> P | J119: =IF($D$18>($J$4-0.01),D20,D30) -> 0.1986956522 | K119: 3 | L119: Soybean Hulls | M119: 0.9347826087 | N119: 0.9312101911 | O119: 1862.420382 | P119: 18.90338164 | Q119: 189.0338164 | R119: 2000 | S119: 18.90338164 | T119: 189.0338164
I120: =IF($D$18>($J$4-0.01),B23,B33) -> Ca:P | J120: =IF($D$18>($J$4-0.01),D23,D33) -> 2.705689278 | K120: 4 | L120: =IF($D$18>($J$4-0.01),N142,F31) -> - | M120: =IF($D$18>($J$4-0.01),N142,G31) -> - | N120: =IF($D$18>($J$4-0.01),O142,H31) -> - | O120: =IF($D$18>($J$4-0.01),Y122,I31) -> - | P120: =IF($D$18>($J$4-0.01),Z122,J31) -> - | Q120: =IF($D$18>($J$4-0.01),AA121,K31) -> - | R120: =IF($D$18>($J$4-0.01),Y122,L31) -> - | S120: =IF($D$18>($J$4-0.01),Z122,M31) -> - | T120: =IF($D$18>($J$4-0.01),AB121,N31) -> -
I121: =IF($D$18>($J$4-0.01),B21,B31) -> $/ton | J121: =IF($D$18>($J$4-0.01),D21,D31) -> 178.4649682 | L121: Total | M121: =SUM(M117:M120) -> 1 | N121: 1 | O121: 2000 | P121: 20.29980108 | Q121: 202.9980108 | R121: 2000 | S121: 18.90338164 | T121: 189.0338164 | AA121: - | AB121: - | AC121: -
I122: =IF($D$18>($J$4-0.01),B22,B32) -> $/hd/d | J122: =IF($D$18>($J$4-0.01),D22,D32) -> 1.811401677 | Y122: - | Z122: -
I124: Limestone needed: | L124: Limestone needed:
I125: =G38 -> 5.120849815 | J125: =H38 -> Lb/ton TMR | L125: =E38 -> 7.867007792 | M125: =F38 -> Lb/ton TMR
I126: =G39 -> 5.484055427 | J126: =H39 -> Lb/ton Grazing or FC Forage | L126: =E39 -> 8.35770102 | M126: =F39 -> Lb/ton Grazing or FC Forage
I131: Notes:
I132: • | J132: =IF(L3="","",L3) -> 
I133: •
I134: •
I135: •
I136: •
I137: •
N142: - | O142: - | P142: - | Q142: - | R142: -

Sheet Heifers
C1: UGA Basic Balancer - Heifers
C2: Description | I2: REQUIREMENTS: | K2: Notes:
C3: Farm | D3: UGA Farms | I3: TDN, % | J3: =VLOOKUP(D6,U12:Z65,4,FALSE) -> 65.5 | K3: •
C4: Group Size | D4: 50 | I4: CP, % | J4: =VLOOKUP(D6,U12:Z65,3,FALSE) -> 10.7 | K4: •
C5: Avg Weight | D5: 700 | I5: Ca, % | J5: =VLOOKUP(D6,U10:Z65,5,FALSE) -> 0.375 | K5: •
C6: Target Gain | D6: BW-700 ADG-1.75 | I6: P, % | J6: =VLOOKUP(D6,U12:Z65,6,FALSE) -> 0.2 | K6: •
I7: DM Intake, lb/d | J7: =VLOOKUP(D6,U12:Z65,2,FALSE)*D5 -> 16.24 | K7: •
K8: •
B9: Diet Formulation | F9: Ingredient | G9: TDN, % | H9: CP, % | V9: Requirements
B10: 1 | C10: Constant ingredient (% DM) | D10: 0 | F10: BLANK | G10: =VLOOKUP(F10,'Feed Library'!C5:F80,4,FALSE) -> 0.1 | H10: =VLOOKUP(F10,'Feed Library'!C5:F80,3,FALSE) -> 0.1 | U10: ADG | V10: DM Intake | W10: CP | X10: TDN | Y10: Ca | Z10: P
B11: 2 | C11: Forage/Roughage | F11: Bermudagrass Hay, Average | G11: =VLOOKUP(F11,'Feed Library'!C5:F80,4,FALSE) -> 55 | H11: =VLOOKUP(F11,'Feed Library'!C5:F80,3,FALSE) -> 9 | J11: NO SUPPLEMENT NEEDED: | U11: Growing Heifers | AH11: Brood Cow | AW11: % of ration | AX11: lb/ton
B12: 3 | C12: Energy Source | F12: Corn | G12: =VLOOKUP(F12,'Feed Library'!C5:F80,4,FALSE) -> 90 | H12: =VLOOKUP(F12,'Feed Library'!C5:F80,3,FALSE) -> 9 | J12: FORAGE MEETS | U12: BW 400 lb | AH12: Heifer | AO12: % in diet | AS12: Base Diet | AT12: =D20 -> 0.231 | AV12: =ABS(AU13-AT14) -> 38.6535 | AW12: =AV12/AV15 -> 0.9970208156 | AX12: =AW12*2002 -> 1996.035673 | AZ12: =((AW12*AT12)+(AW14*AT14))/D20 -> 1.5
B13: 4 | C13: Protein Source | F13: Dried Distiller's Grains | G13: =VLOOKUP(F13,'Feed Library'!C5:F80,4,FALSE) -> 92 | H13: =VLOOKUP(F13,'Feed Library'!C5:F80,3,FALSE) -> 28 | J13: NUTRIENT REQUIREMENTS! | U13: BW-400 ADG-1.00 | V13: 0.0257 | W13: 10.4 | X13: 58 | Y13: 0.39 | Z13: 0.2 | AL13: =VLOOKUP(F11,'Feed Library'!C5:F80,4,FALSE) -> 55 | AN13: =ABS(AM15-AL17) -> 24.5 | AO13: =(AN13/(AN13+AN17))*(1-G18) -> 0.7 | AU13: =D20*1.5 -> 0.3465
U14: BW-400 ADG-1.25 | V14: 0.026 | W14: 11.3 | X14: 60.5 | Y14: 0.45 | Z14: 0.225 | AS14: Limestone | AT14: 39 | AV14: =ABS(AU13-AT12) -> 0.1155 | AW14: =AV14/AV15 -> 0.0029791844 | AX14: =AW14*2000 -> 5.9583688
U15: BW-400 ADG-1.50 | V15: 0.0265 | W15: 12.2 | X15: 63 | Y15: 0.51 | Z15: 0.25 | AM15: =((VLOOKUP(D6,U12:X65,4,FALSE)-(VLOOKUP(F10,'Feed Library'!C5:F80,4,FALSE)*G18)))/(1-D10) -> 65.5 | AV15: =SUM(AV12:AV14) -> 38.769
B16: CHEMICAL COMPOSITION | F16: BASE DIET | J16: -----Total Mixed Ration----- | M16: Grazing or Free Choice Forage | U16: BW-400 ADG-1.75 | V16: 0.0255 | W16: 13.2 | X16: 65.5 | Y16: 0.57 | Z16: 0.275
B17: TDN | D17: =((VLOOKUP(F18,'Feed Library'!C5:F80,4,FALSE)*G18)+(AL13*G19)+(AL17*G20)) -> 65.5 | F17: Ingredient | G17: DM % | H17: AF % | I17: lb/ton | J17: lb/hd/d | K17: lb/group/d | L17: lb/ton | M17: lb/hd/d | N17: lb/group/d | U17: BW-400 ADG-2.00 | V17: 0.0265 | W17: 14.1 | X17: 68 | Y17: 0.63 | Z17: 0.3 | AL17: =VLOOKUP(F12,'Feed Library'!C5:F80,4,FALSE) -> 90 | AN17: =ABS(AM15-AL13) -> 10.5 | AO17: =(AN17/(AN17+AN13))*(1-G18) -> 0.3
B18: CP | D18: =(VLOOKUP(F18,'Feed Library'!C5:F80,3,FALSE)*G18)+(VLOOKUP(F19,'Feed Library'!C5:F80,3,FALSE)*G19)+(VLOOKUP(F20,'Feed Library'!C5:F80,3,FALSE)*G20) -> 9 | E18: 1 | F18: =F10 -> BLANK | G18: =D10 -> 0 | H18: =J18/J21 -> 0 | I18: =H18*2000 -> 0 | J18: =IF(D10=0,0,((G18*(J7))/(VLOOKUP(F18,'Feed Library'!C5:F80,2, FALSE)/100))) -> 0 | K18: =J18*D4 -> 0 | L18: =IF(H18=0,0,((H18/(H18+H20))*2000)) -> 0 | M18: =J18 -> 0 | N18: =M18*D4 -> 0 | U18: BW-400 ADG-2.25 | V18: 0.0265 | W18: 15.1 | X18: 70.5 | Y18: 0.7 | Z18: 0.325
B19: Ca | D19: =(VLOOKUP(F18,'Feed Library'!C5:I80,5,FALSE)*G18)+(VLOOKUP(F19,'Feed Library'!C5:I80,5,FALSE)*G19)+(VLOOKUP(F20,'Feed Library'!C5:I80,5,FALSE)*G20) -> 0.258 | E19: 2 | F19: =F11 -> Bermudagrass Hay, Average | G19: =IF(AL17>1,AO13,(1-D10)) -> 0.7 | H19: =J19/J21 -> 0.7118644068 | I19: =H19*2000 -> 1423.728814 | J19: =G19*(J7)/(VLOOKUP(F19,'Feed Library'!C5:F80,2, FALSE)/100) -> 13.37411765 | K19: =J19*D4 -> 668.7058824 | L19: - | M19: - | N19: - | U19: BW-400 ADG-2.50 | V19: 0.0265 | W19: 16.1 | X19: 73 | Y19: 0.76 | Z19: 0.35
B20: P | D20: =(VLOOKUP(F18,'Feed Library'!C5:I80,6,FALSE)*G18)+(VLOOKUP(F19,'Feed Library'!C5:I80,6,FALSE)*G19)+(VLOOKUP(F20,'Feed Library'!C5:I80,6,FALSE)*G20) -> 0.231 | E20: 3 | F20: =F12 -> Corn | G20: =IF(AL17>1,AO17,0) -> 0.3 | H20: =J20/J21 -> 0.2881355932 | I20: =H20*2000 -> 576.2711864 | J20: =IF(AL17>0,(G20*(J7)/(VLOOKUP(F20,'Feed Library'!C5:F80,2, FALSE)/100)),0) -> 5.413333333 | K20: =J20*D4 -> 270.6666667 | L20: =IF(H20=0,0,((H20/(H18+H20))*2000)) -> 2000 | M20: =J20 -> 5.413333333 | N20: =M20*D4 -> 270.6666667 | U20: BW 500 lb | AO20: % in diet
B21: $/ton | D21: =(VLOOKUP(F18,'Feed Library'!C5:I80,7,FALSE)*H18)+(VLOOKUP(F19,'Feed Library'!C5:I80,7,FALSE)*H19)+(VLOOKUP(F20,'Feed Library'!C5:I80,7,FALSE)*H20) -> 110.1694915 | F21: Total | G21: =SUM(G18:G20) -> 1 | H21: 1 | I21: 2000 | J21: =SUM(J18:J20) -> 18.78745098 | K21: 939.372549 | L21: 2000 | M21: =SUM(M18:M20) -> 5.413333333 | N21: =SUM(N18:N20) -> 270.6666667 | U21: BW-500 ADG-1.00 | V21: 0.0244 | W21: 9.8 | X21: 58 | Y21: 0.34 | Z21: 0.18 | AL21: =IF(AL17=0.1,VLOOKUP(F11,'Feed Library'!C5:F80,3,FALSE),(VLOOKUP(F11,'Feed Library'!C5:F80,3,FALSE)*(AO13/(AO17+AO13)))+(VLOOKUP(F12,'Feed Library'!C5:F80,3,FALSE)*(AO17/(AO17+AO13)))) -> 9 | AN21: =ABS(AM23-AL25) -> 17.3 | AO21: =AN21/(AN21+AN25) -> 0.9105263158 | AS21: Final Diet | AT21: =D29 -> 0.2393894737 | AV21: =ABS(AU22-AT23) -> 38.56639737 | AW21: =AV21/AV24 -> 0.9949894195 | AX21: =AW21*2002 -> 1991.968818 | AZ21: =((AW21*AT21)+(AW23*AT23))/D29 -> 1.811285287
B22: $/hd/d | D22: =(D21/2000)*J21 -> 1.034901961 | U22: BW-500 ADG-1.25 | V22: 0.0248 | W22: 10.5 | X22: 60.5 | Y22: 0.39 | Z22: 0.2 | AU22: =D30*1.5 -> 0.4336026316
B23: Ca:P | D23: =D19/D20 -> 1.116883117 | U23: BW-500 ADG-1.50 | V23: 0.0252 | W23: 11.2 | X23: 63 | Y23: 0.43 | Z23: 0.22 | AM23: =(((VLOOKUP(D6,U12:X65,3,FALSE)-(VLOOKUP(F10,'Feed Library'!C5:F80,3,FALSE)*G18))))/(1-D10) -> 10.7 | AS23: Limestone | AT23: 39 | AV23: =ABS(AU22-AT21) -> 0.1942131579 | AW23: =AV23/AV24 -> 0.005010580464 | AX23: =AW23*2000 -> 10.02116093
U24: BW-500 ADG-1.75 | V24: 0.0252 | W24: 12.2 | X24: 65.5 | Y24: 0.48 | Z24: 0.24 | AV24: =SUM(AV21:AV23) -> 38.76061053
U25: BW-500 ADG-2.00 | V25: 0.0252 | W25: 12.9 | X25: 68 | Y25: 0.53 | Z25: 0.26 | AL25: =VLOOKUP(F13,'Feed Library'!C5:F80,3,FALSE) -> 28 | AN25: =ABS(AM23-AL21) -> 1.7 | AO25: =AN25/(AN25+AN21) -> 0.08947368421
B26: CHEMICAL COMPOSITION | F26: FINAL DIET | J26: -----Total Mixed Ration----- | M26: Grazing or Free Choice Forage | U26: BW-500 ADG-2.25 | V26: 0.0252 | W26: 13.75 | X26: 70.5 | Y26: 0.58 | Z26: 0.28
B27: TDN | D27: =(VLOOKUP(F10,'Feed Library'!C5:F80,4,FALSE)*G28)+(AL13*G29)+(AL17*G30)+(VLOOKUP(F13,'Feed Library'!C5:F80,4,FALSE)*G31) -> 67.87105263 | F27: Ingredient | G27: DM % | H27: AF % | I27: lb/ton | J27: lb/hd/d | K27: lb/group/d | L27: lb/ton | M27: lb/hd/d | N27: lb/group/d | U27: BW-500 ADG-2.50 | V27: 0.0252 | W27: 14.6 | X27: 73 | Y27: 0.63 | Z27: 0.3
B28: CP | D28: =(VLOOKUP(F28,'Feed Library'!C5:F80,3,FALSE)*G28)+(VLOOKUP(F29,'Feed Library'!C5:F80,3,FALSE)*G29)+(VLOOKUP(F30,'Feed Library'!C5:F80,3,FALSE)*G30)+(VLOOKUP(F31,'Feed Library'!C5:F80,3,FALSE)*G31) -> 10.7 | E28: 1 | F28: =F10 -> BLANK | G28: =D10 -> 0 | H28: =J28/J32 -> 0 | I28: =H28*2000 -> 0 | J28: =IF(D10=0,0,((G28*(J7))/(VLOOKUP(F28,'Feed Library'!C5:F80,2, FALSE)/100))) -> 0 | K28: =J28*D4 -> 0 | L28: =(H28/($H$28+$H$30+$H$31))*2000 -> 0 | M28: =J28 -> 0 | N28: =M28*D4 -> 0 | U28: BW 600 lb
B29: Ca | D29: =(VLOOKUP(F28,'Feed Library'!C5:I80,5,FALSE)*G28)+(VLOOKUP(F11,'Feed Library'!C5:I80,5,FALSE)*G29)+(VLOOKUP(F12,'Feed Library'!C5:I80,5,FALSE)*G30)+(VLOOKUP(F13,'Feed Library'!C5:I80,5,FALSE)*G31) -> 0.2393894737 | E29: 2 | F29: =F11 -> Bermudagrass Hay, Average | G29: =IF(AL17>1,(AO13*AO21),((1-D10)*AO21)) -> 0.6373684211 | H29: =J29/J32 -> 0.650472979 | I29: =H29*2000 -> 1300.945958 | J29: =(G29*(J7))/(VLOOKUP(F29,'Feed Library'!C5:F80,2, FALSE)/100) -> 12.17748607 | K29: =J29*D4 -> 608.8743034 | L29: - | M29: - | N29: - | U29: BW-600 ADG-1.00 | V29: 0.0233 | W29: 9.3 | X29: 58 | Y29: 0.31 | Z29: 0.17
B30: P | D30: =(VLOOKUP(F28,'Feed Library'!C5:I80,6,FALSE)*G28)+(VLOOKUP(F11,'Feed Library'!C5:I80,6,FALSE)*G29)+(VLOOKUP(F12,'Feed Library'!C5:I80,6,FALSE)*G30)+(VLOOKUP(F13,'Feed Library'!C5:I80,6,FALSE)*G31) -> 0.2890684211 | E30: 3 | F30: =F12 -> Corn | G30: =IF(AL17>1,(AO17*AO21),AO22) -> 0.2731578947 | H30: =J30/J32 -> 0.263286682 | I30: =H30*2000 -> 526.573364 | J30: =IF(AL17>0,(G30*(J7)/(VLOOKUP(F30,'Feed Library'!C5:F80,2, FALSE)/100)),0) -> 4.928982456 | K30: =J30*D4 -> 246.4491228 | L30: =(H30/($H$28+$H$30+$H$31))*2000 -> 1506.531205 | M30: =J30 -> 4.928982456 | N30: =M30*D4 -> 246.4491228 | U30: BW-600 ADG-1.25 | V30: 0.02365 | W30: 10 | X30: 60.5 | Y30: 0.34 | Z30: 0.185
B31: $/ton | D31: =(VLOOKUP(F28,'Feed Library'!C5:I80,7,FALSE)*H28)+(VLOOKUP(F29,'Feed Library'!C5:I80,7,FALSE)*H29)+(VLOOKUP(F30,'Feed Library'!C5:I80,7,FALSE)*H30)+(VLOOKUP(F31,'Feed Library'!C5:I80,7,FALSE)*H31) -> 102.8244457 | E31: 4 | F31: =F13 -> Dried Distiller's Grains | G31: =AO25*(1-G28) -> 0.08947368421 | H31: =J31/J32 -> 0.08624033899 | I31: =H31*2000 -> 172.480678 | J31: =(G31*(J7))/(VLOOKUP(F31,'Feed Library'!C5:F80,2, FALSE)/100) -> 1.614502924 | K31: =J31*D4 -> 80.7251462 | L31: =(H31/($H$28+$H$30+$H$31))*2000 -> 493.4687954 | M31: =J31 -> 1.614502924 | N31: =M31*D4 -> 80.7251462 | U31: BW-600 ADG-1.50 | V31: 0.024 | W31: 10.6 | X31: 63 | Y31: 0.38 | Z31: 0.2
B32: $/hd/d | D32: =D31/2000*J32 -> 0.9624867561 | F32: Total | G32: =SUM(G28:G31) -> 1 | H32: =SUM(H28:H31) -> 1 | I32: 2000 | J32: 18.72097145 | K32: 936.0485724 | L32: 2000 | M32: 6.54348538 | N32: =SUM(N28:N31) -> 327.174269 | U32: BW-600 ADG-1.75 | V32: 0.024 | W32: 11.3 | X32: 65.5 | Y32: 0.42 | Z32: 0.215
B33: Ca:P | D33: =D29/D30 -> 0.8281412159 | U33: BW-600 ADG-2.00 | V33: 0.024 | W33: 12.1 | X33: 68 | Y33: 0.46 | Z33: 0.23
U34: BW-600 ADG-2.25 | V34: 0.02365 | W34: 12.8 | X34: 70.5 | Y34: 0.5 | Z34: 0.245
B35: NOT ENOUGH | E35: ADJUST MINERAL TO INCREASE | G35: ADJUST MINERAL TO INCREASE | U35: BW-600 ADG-2.50 | V35: 0.0233 | W35: 13.5 | X35: 73 | Y35: 0.54 | Z35: 0.26
B36: ENERGY AVAILABLE | E36: Ca:P RATIO To 1.5 | G36: Ca:P RATIO TO 1.5 | U36: BW 700 lb
B37: IN DIET | E37: Limestone needed: | G37: Limestone needed: | U37: BW-700 ADG-1.00 | V37: 0.0224 | W37: 9 | X37: 58 | Y37: 0.29 | Z37: 0.17
E38: =AX23 -> 10.02116093 | F38: Lb/ton TMR | G38: =AX14 -> 5.9583688 | H38: Lb/ton TMR | U38: BW-700 ADG-1.25 | V38: 0.022 | W38: 9.6 | X38: 60.5 | Y38: 0.315 | Z38: 0.18
E39: =E38/(E38+I28+I30+I31)*2000 -> 28.26543895 | F39: Lb/ton Grazing or FC Forage | G39: =G38/(G38+I18+I20)*2000 -> 20.4674213 | H39: Lb/ton Grazing or FC Forage | U39: BW-700 ADG-1.50 | V39: 0.02314 | W39: 10.1 | X39: 63 | Y39: 0.34 | Z39: 0.19
U40: BW-700 ADG-1.75 | V40: 0.0232 | W40: 10.7 | X40: 65.5 | Y40: 0.375 | Z40: 0.2
U41: BW-700 ADG-2.00 | V41: 0.0233 | W41: 11.3 | X41: 68 | Y41: 0.41 | Z41: 0.21
U42: BW-700 ADG-2.25 | V42: 0.0232 | W42: 12 | X42: 70.5 | Y42: 0.44 | Z42: 0.225
U43: BW-700 ADG-2.50 | V43: 0.02314 | W43: 12.7 | X43: 73 | Y43: 0.47 | Z43: 0.24
U44: BW 800 lb
U45: BW-800 ADG-1.00 | V45: 0.0219 | W45: 8.825 | X45: 58 | Y45: 0.2875 | Z45: 0.18
U46: BW-800 ADG-1.75 | V46: 0.02225 | W46: 9.375 | X46: 60.5 | Y46: 0.30625 | Z46: 0.17
U47: BW-800 ADG-1.50 | V47: 0.022625 | W47: 9.925 | X47: 63 | Y47: 0.325 | Z47: 0.19
U48: BW-800 ADG-1.75 | V48: 0.0265 | W48: 10.4625 | X48: 65.5 | Y48: 0.35625 | Z48: 0.195
U49: BW-800 ADG-2.00 | V49: 0.0227 | W49: 11 | X49: 68 | Y49: 0.3875 | Z49: 0.2
U50: BW-800 ADG-2.25 | V50: 0.02262 | W50: 11.65 | X50: 70.5 | Y50: 0.41125 | Z50: 0.216
U51: BW-800 ADG-2.50 | V51: 0.02256 | W51: 12.3 | X51: 73 | Y51: 0.435 | Z51: 0.2325
U52: Pregnant Heifers
U53: PH - 1.0 lb/d | V53: 0.0202 | W53: 8.5 | X53: 55.1 | Y53: 0.26 | Z53: 0.2
U54: PH - 1.5 lb/d | V54: 0.0211 | W54: 9 | X54: 60 | Y54: 0.3 | Z54: 0.21
U55: PH - 2.0 lb/d | V55: 0.0214 | W55: 9.5 | X55: 66 | Y55: 0.34 | Z55: 0.22
U56: Lactating Heifers | V56: 0.0212 | W56: 11 | X56: 63 | Y56: 0.34 | Z56: 0.24
U58: User Defined | W58: - | X58: - | Y58: - | Z58: -
I98: Heifer Ration
I99: Date | J99: =TODAY() -> 2020-09-29
I100: Producer | J100: =D3 -> UGA Farms
I101: County | J101: =Program!O14 -> Simmental
I102: Agent | J102: =Program!O15 -> Joe Angus
I103: Local Contact | J103: =Program!O16 -> 706-542-1852 | O103: 1-800-ASK-UGA1
I106: Description: | O106: REQUIREMENTS:
I107: =C4 -> Group Size | J107: 50 | O107: TDN, % | Q107: =J3 -> 65.5
I108: Avg Weight | J108: 700 | O108: CP, % | Q108: =J4 -> 10.7
I109: Target Gain | J109: BW-700 ADG-1.75 | O109: Ca, % | Q109: =J5 -> 0.375
O110: P, % | Q110: =J6 -> 0.2
O111: DM Intake, lb/d | Q111: =J7 -> 16.24
I115: CHEMICAL COMPOSITION | L115: RATION | P115: =J16 -> -----Total Mixed Ration----- | T115: =M16 -> Grazing or Free Choice Forage
I116: =IF($D$18>($J$4-0.01),B17,B27) -> TDN | J116: =IF($D$18>($J$4-0.01),D17,D27) -> 67.87105263 | L116: =IF($D$18>($J$4-0.01),F17,F27) -> Ingredient | M116: DM % | N116: AF % | O116: lb/ton | P116: lb/hd/d | Q116: lb/group/d | R116: lb/ton | S116: lb/hd/d | T116: lb/group/d
I117: =IF($D$18>($J$4-0.01),B18,B28) -> CP | J117: =IF($D$18>($J$4-0.01),D18,D28) -> 10.7 | K117: 1 | L117: BLANK | M117: 0 | N117: 0 | O117: 0 | P117: 0 | Q117: 0 | R117: 0 | S117: 0 | T117: 0
I118: =IF($D$18>($J$4-0.01),B19,B29) -> Ca | J118: =IF($D$18>($J$4-0.01),D19,D29) -> 0.2393894737 | K118: 2 | L118: Bermudagrass Hay, Average | M118: 0.6373684211 | N118: 0.650472979 | O118: 1300.945958 | P118: 12.17748607 | Q118: 608.8743034 | R118: - | S118: - | T118: -
I119: =IF($D$18>($J$4-0.01),B20,B30) -> P | J119: =IF($D$18>($J$4-0.01),D20,D30) -> 0.2890684211 | K119: 3 | L119: Corn | M119: 0.2731578947 | N119: 0.263286682 | O119: 526.573364 | P119: 4.928982456 | Q119: 246.4491228 | R119: 1506.531205 | S119: 4.928982456 | T119: 246.4491228
I120: =IF($D$18>($J$4-0.01),B23,B33) -> Ca:P | J120: =IF($D$18>($J$4-0.01),D23,D33) -> 0.8281412159 | K120: 4 | L120: =IF($D$18>($J$4-0.01),N142,F31) -> Dried Distiller's Grains | M120: =IF($D$18>($J$4-0.01),N142,G31) -> 0.08947368421 | N120: =IF($D$18>($J$4-0.01),O142,H31) -> 0.08624033899 | O120: =IF($D$18>($J$4-0.01),Y142,I31) -> 172.480678 | P120: =IF($D$18>($J$4-0.01),Z142,J31) -> 1.614502924 | Q120: =IF($D$18>($J$4-0.01),AA121,K31) -> 80.7251462 | R120: =IF($D$18>($J$4-0.01),Y142,L31) -> 493.4687954 | S120: =IF($D$18>($J$4-0.01),Z142,M31) -> 1.614502924 | T120: =IF($D$18>($J$4-0.01),AB121,N31) -> 80.7251462
I121: =IF($D$18>($J$4-0.01),B21,B31) -> $/ton | J121: =IF($D$18>($J$4-0.01),D21,D31) -> 102.8244457 | L121: Total | M121: =SUM(M117:M120) -> 1 | N121: 1 | O121: 2000 | P121: 18.72097145 | Q121: 936.0485724 | R121: 2000 | S121: 6.54348538 | T121: 327.174269 | AA121: - | AB121: - | AC121: -
I122: =IF($D$18>($J$4-0.01),B22,B32) -> $/hd/d | J122: =IF($D$18>($J$4-0.01),D22,D32) -> 0.9624867561
I124: Limestone needed: | L124: Limestone needed:
I125: =G38 -> 5.9583688 | J125: =H38 -> Lb/ton TMR | L125: =E38 -> 10.02116093 | M125: =F38 -> Lb/ton TMR
I126: =G39 -> 20.4674213 | J126: =H39 -> Lb/ton Grazing or FC Forage | L126: =E39 -> 28.26543895 | M126: =F39 -> Lb/ton Grazing or FC Forage
I131: Notes:
I132: • | J132: =IF(L3="","",L3) -> 
I133: •
I134: •
I135: •
I136: •
I137: •
N142: - | O142: - | P142: - | Q142: - | R142: - | Y142: - | Z142: -

Sheet Feeder Stocker
C1: UGA Basic Balancer - Feeder/Stocker Cattle
C2: Description | I2: REQUIREMENTS: | K2: Notes:
C3: Farm | D3: UGA Farms | I3: TDN, % | J3: =VLOOKUP(D6,U12:Z45,4,FALSE) -> 67.5 | K3: •
C4: Group Size | D4: 500 | I4: CP, % | J4: =VLOOKUP(D6,U12:Z45,3,FALSE) -> 11.4 | K4: •
C5: Avg Weight | D5: 500 | I5: Ca, % | J5: =VLOOKUP(D6,U10:Z45,5,FALSE) -> 0.47 | K5: •
C6: Target Gain | D6: BW-500 ADG-2.0 | I6: P, % | J6: =VLOOKUP(D6,U12:Z45,6,FALSE) -> 0.24 | K6: •
I7: DM Intake, lb/d | J7: =VLOOKUP(D6,U12:Z45,2,FALSE)*D5 -> 13.1 | K7: •
K8: •
B9: Diet Formulation | F9: Ingredient | G9: TDN, % | H9: CP, % | V9: Requirements
B10: 1 | C10: Constant ingredient (% DM) | D10: 0 | F10: BLANK | G10: =VLOOKUP(F10,'Feed Library'!C5:F80,4,FALSE) -> 0.1 | H10: =VLOOKUP(F10,'Feed Library'!C5:F80,3,FALSE) -> 0.1 | U10: ADG | V10: DM Intake | W10: CP | X10: TDN | Y10: Ca | Z10: P
B11: 2 | C11: Forage/Roughage | F11: Ryegrass Baleage - Mature | G11: =VLOOKUP(F11,'Feed Library'!C5:F80,4,FALSE) -> 58 | H11: =VLOOKUP(F11,'Feed Library'!C5:F80,3,FALSE) -> 12 | J11: NO SUPPLEMENT NEEDED: | U11: BW 400 lb | AH11: Brood Cow | AW11: % of ration | AX11: lb/ton
B12: 3 | C12: Energy Source | F12: Soybean Hulls | G12: =VLOOKUP(F12,'Feed Library'!C5:F80,4,FALSE) -> 78 | H12: =VLOOKUP(F12,'Feed Library'!C5:F80,3,FALSE) -> 12 | J12: FORAGE MEETS | U12: BW-400 ADG-1.0 | V12: 0.026 | W12: 10.3 | X12: 58.5 | Y12: 0.38 | Z12: 0.21 | AH12: Heifer | AO12: % in diet | AS12: Base Diet | AT12: =D20 -> 0.27875 | AV12: =ABS(AU13-AT14) -> 38.581875 | AW12: =AV12/AV15 -> 0.9964005553 | AX12: =AW12*2002 -> 1994.793912 | AZ12: =((AW12*AT12)+(AW14*AT14))/D20 -> 1.5
B13: 4 | C13: Protein Source | F13: Corn Gluten Feed | G13: =VLOOKUP(F13,'Feed Library'!C5:F80,4,FALSE) -> 83 | H13: =VLOOKUP(F13,'Feed Library'!C5:F80,3,FALSE) -> 21 | J13: NUTRIENT REQUIREMENTS! | U13: BW-400 ADG-1.5 | V13: 0.027 | W13: 11.5 | X13: 63 | Y13: 0.47 | Z13: 0.25 | AL13: =VLOOKUP(F11,'Feed Library'!C5:F80,4,FALSE) -> 58 | AN13: =ABS(AM15-AL17) -> 10.5 | AO13: =(AN13/(AN13+AN17))*(1-G18) -> 0.525 | AU13: =D20*1.5 -> 0.418125
U14: BW-400 ADG-2.0 | V14: 0.0275 | W14: 12.7 | X14: 67.5 | Y14: 0.56 | Z14: 0.26 | AS14: Limestone | AT14: 39 | AV14: =ABS(AU13-AT12) -> 0.139375 | AW14: =AV14/AV15 -> 0.003599444749 | AX14: =AW14*2000 -> 7.198889499
U15: BW-400 ADG-2.5 | V15: 0.0275 | W15: 14.2 | X15: 73.5 | Y15: 0.68 | Z15: 0.3 | AM15: =((VLOOKUP(D6,U12:X45,4,FALSE)-(VLOOKUP(F10,'Feed Library'!C5:F80,4,FALSE)*G18)))/(1-D10) -> 67.5 | AV15: =SUM(AV12:AV14) -> 38.72125
B16: CHEMICAL COMPOSITION | F16: BASE DIET | J16: -----Total Mixed Ration----- | M16: Grazing or Free Choice Forage | U16: BW-400 ADG-3.0 | V16: 0.025 | W16: 16.6 | X16: 85 | Y16: 0.86 | Z16: 0.37
B17: TDN | D17: =((VLOOKUP(F18,'Feed Library'!C5:F80,4,FALSE)*G18)+(AL13*G19)+(AL17*G20)) -> 67.5 | F17: Ingredient | G17: DM % | H17: AF % | I17: lb/ton | J17: lb/hd/d | K17: lb/group/d | L17: lb/ton | M17: lb/hd/d | N17: lb/group/d | U17: BW 500 lb | AL17: =VLOOKUP(F12,'Feed Library'!C5:F80,4,FALSE) -> 78 | AN17: =ABS(AM15-AL13) -> 9.5 | AO17: =(AN17/(AN17+AN13))*(1-G18) -> 0.475
B18: CP | D18: =(VLOOKUP(F18,'Feed Library'!C5:F80,3,FALSE)*G18)+(VLOOKUP(F19,'Feed Library'!C5:F80,3,FALSE)*G19)+(VLOOKUP(F20,'Feed Library'!C5:F80,3,FALSE)*G20) -> 12 | E18: 1 | F18: =F10 -> BLANK | G18: =D10 -> 0 | H18: =J18/J21 -> 0 | I18: =H18*2000 -> 0 | J18: =IF(D10=0,0,((G18*(J7))/(VLOOKUP(F18,'Feed Library'!C5:F80,2, FALSE)/100))) -> 0 | K18: =J18*D4 -> 0 | L18: =IF(H18=0,0,((H18/(H18+H20))*2000)) -> 0 | M18: =J18 -> 0 | N18: =M18*D4 -> 0 | U18: BW-500 ADG-1.0 | V18: 0.0246 | W18: 9.5 | X18: 58.5 | Y18: 0.32 | Z18: 0.2
B19: Ca | D19: =(VLOOKUP(F18,'Feed Library'!C5:I80,5,FALSE)*G18)+(VLOOKUP(F19,'Feed Library'!C5:I80,5,FALSE)*G19)+(VLOOKUP(F20,'Feed Library'!C5:I80,5,FALSE)*G20) -> 0.57625 | E19: 2 | F19: =F11 -> Ryegrass Baleage - Mature | G19: =IF(AL17>1,AO13,(1-D10)) -> 0.525 | H19: =J19/J21 -> 0.6654929577 | I19: =H19*2000 -> 1330.985915 | J19: =G19*(J7)/(VLOOKUP(F19,'Feed Library'!C5:F80,2, FALSE)/100) -> 13.755 | K19: =J19*D4 -> 6877.5 | L19: - | M19: - | N19: - | U19: BW-500 ADG-1.5 | V19: 0.0256 | W19: 10.5 | X19: 63 | Y19: 0.4 | Z19: 0.22
B20: P | D20: =(VLOOKUP(F18,'Feed Library'!C5:I80,6,FALSE)*G18)+(VLOOKUP(F19,'Feed Library'!C5:I80,6,FALSE)*G19)+(VLOOKUP(F20,'Feed Library'!C5:I80,6,FALSE)*G20) -> 0.27875 | E20: 3 | F20: =F12 -> Soybean Hulls | G20: =IF(AL17>1,AO17,0) -> 0.475 | H20: =J20/J21 -> 0.3345070423 | I20: =H20*2000 -> 669.0140845 | J20: =IF(AL17>0,(G20*(J7)/(VLOOKUP(F20,'Feed Library'!C5:F80,2, FALSE)/100)),0) -> 6.913888889 | K20: =J20*D4 -> 3456.944444 | L20: =IF(H20=0,0,((H20/(H18+H20))*2000)) -> 2000 | M20: =J20 -> 6.913888889 | N20: =M20*D4 -> 3456.944444 | U20: BW-500 ADG-2.0 | V20: 0.0262 | W20: 11.4 | X20: 67.5 | Y20: 0.47 | Z20: 0.24 | AO20: % in diet
B21: $/ton | D21: =(VLOOKUP(F18,'Feed Library'!C5:I80,7,FALSE)*H18)+(VLOOKUP(F19,'Feed Library'!C5:I80,7,FALSE)*H19)+(VLOOKUP(F20,'Feed Library'!C5:I80,7,FALSE)*H20) -> 81.84859155 | F21: Total | G21: =SUM(G18:G20) -> 1 | H21: 1 | I21: 2000 | J21: =SUM(J18:J20) -> 20.66888889 | K21: 10334.44444 | L21: 2000 | M21: =SUM(M18:M20) -> 6.913888889 | N21: =SUM(N18:N20) -> 3456.944444 | U21: BW-500 ADG-2.5 | V21: 0.026 | W21: 12.5 | X21: 73.5 | Y21: 0.56 | Z21: 0.27 | AL21: =IF(AL17=0.1,VLOOKUP(F11,'Feed Library'!C5:F80,3,FALSE),(VLOOKUP(F11,'Feed Library'!C5:F80,3,FALSE)*(AO13/(AO17+AO13)))+(VLOOKUP(F12,'Feed Library'!C5:F80,3,FALSE)*(AO17/(AO17+AO13)))) -> 12 | AN21: =ABS(AM23-AL25) -> 9.6 | AO21: =AN21/(AN21+AN25) -> 0.9411764706 | AS21: Final Diet | AT21: =D29 -> 0.5470588235 | AV21: =ABS(AU22-AT23) -> 38.55882353 | AW21: =AV21/AV24 -> 0.9972615244 | AX21: =AW21*2002 -> 1996.517572 | AZ21: =((AW21*AT21)+(AW23*AT23))/D29 -> 1.192488332
B22: $/hd/d | D22: =(D21/2000)*J21 -> 0.8458597222 | U22: BW-500 ADG-3.0 | V22: 0.0236 | W22: 14.4 | X22: 85 | Y22: 0.69 | Z22: 0.32 | AU22: =D30*1.5 -> 0.4411764706
B23: Ca:P | D23: =D19/D20 -> 2.067264574 | U23: BW 600 lb | AM23: =(((VLOOKUP(D6,U12:X45,3,FALSE)-(VLOOKUP(F10,'Feed Library'!C5:F80,3,FALSE)*G18))))/(1-D10) -> 11.4 | AS23: Limestone | AT23: 39 | AV23: =ABS(AU22-AT21) -> 0.1058823529 | AW23: =AV23/AV24 -> 0.002738475582 | AX23: =AW23*2000 -> 5.476951164
U24: BW-600 ADG-1.0 | V24: 0.0235 | W24: 9 | X24: 58.5 | Y24: 0.28 | Z24: 0.19 | AV24: =SUM(AV21:AV23) -> 38.66470588
U25: BW-600 ADG-1.5 | V25: 0.0245 | W25: 9.8 | X25: 63 | Y25: 0.35 | Z25: 0.21 | AL25: =VLOOKUP(F13,'Feed Library'!C5:F80,3,FALSE) -> 21 | AN25: =ABS(AM23-AL21) -> 0.6 | AO25: =AN25/(AN25+AN21) -> 0.05882352941
B26: CHEMICAL COMPOSITION | F26: FINAL DIET | J26: -----Total Mixed Ration----- | M26: Grazing or Free Choice Forage | U26: BW-600 ADG-2.0 | V26: 0.025 | W26: 10.5 | X26: 67.5 | Y26: 0.4 | Z26: 0.22
B27: TDN | D27: =(VLOOKUP(F10,'Feed Library'!C5:F80,4,FALSE)*G28)+(AL13*G29)+(AL17*G30)+(VLOOKUP(F13,'Feed Library'!C5:F80,4,FALSE)*G31) -> 68.41176471 | F27: Ingredient | G27: DM % | H27: AF % | I27: lb/ton | J27: lb/hd/d | K27: lb/group/d | L27: lb/ton | M27: lb/hd/d | N27: lb/group/d | U27: BW-600 ADG-2.5 | V27: 0.0248 | W27: 11.4 | X27: 73.5 | Y27: 0.46 | Z27: 0.24
B28: CP | D28: =(VLOOKUP(F28,'Feed Library'!C5:F80,3,FALSE)*G28)+(VLOOKUP(F29,'Feed Library'!C5:F80,3,FALSE)*G29)+(VLOOKUP(F30,'Feed Library'!C5:F80,3,FALSE)*G30)+(VLOOKUP(F31,'Feed Library'!C5:F80,3,FALSE)*G31) -> 12.52941176 | E28: 1 | F28: =F10 -> BLANK | G28: =D10 -> 0 | H28: =J28/J32 -> 0 | I28: =H28*2000 -> 0 | J28: =IF(D10=0,0,((G28*(J7))/(VLOOKUP(F28,'Feed Library'!C5:F80,2, FALSE)/100))) -> 0 | K28: =J28*D4 -> 0 | L28: =(H28/($H$28+$H$30+$H$31))*2000 -> 0 | M28: =J28 -> 0 | N28: =M28*D4 -> 0 | U28: BW-600 ADG-3.0 | V28: 0.0225 | W28: 12.9 | X28: 85 | Y28: 0.57 | Z28: 0.29
B29: Ca | D29: =(VLOOKUP(F28,'Feed Library'!C5:I80,5,FALSE)*G28)+(VLOOKUP(F11,'Feed Library'!C5:I80,5,FALSE)*G29)+(VLOOKUP(F12,'Feed Library'!C5:I80,5,FALSE)*G30)+(VLOOKUP(F13,'Feed Library'!C5:I80,5,FALSE)*G31) -> 0.5470588235 | E29: 2 | F29: =F11 -> Ryegrass Baleage - Mature | G29: =IF(AL17>1,(AO13*AO21),((1-D10)*AO21)) -> 0.4941176471 | H29: =J29/J32 -> 0.6374367622 | I29: =H29*2000 -> 1274.873524 | J29: =(G29*(J7))/(VLOOKUP(F29,'Feed Library'!C5:F80,2, FALSE)/100) -> 12.94588235 | K29: =J29*D4 -> 6472.941176 | L29: - | M29: - | N29: - | U29: BW 700 lb
B30: P | D30: =(VLOOKUP(F28,'Feed Library'!C5:I80,6,FALSE)*G28)+(VLOOKUP(F11,'Feed Library'!C5:I80,6,FALSE)*G29)+(VLOOKUP(F12,'Feed Library'!C5:I80,6,FALSE)*G30)+(VLOOKUP(F13,'Feed Library'!C5:I80,6,FALSE)*G31) -> 0.2941176471 | E30: 3 | F30: =F12 -> Soybean Hulls | G30: =IF(AL17>1,(AO17*AO21),AO22) -> 0.4470588235 | H30: =J30/J32 -> 0.3204047218 | I30: =H30*2000 -> 640.8094435 | J30: =IF(AL17>0,(G30*(J7)/(VLOOKUP(F30,'Feed Library'!C5:F80,2, FALSE)/100)),0) -> 6.507189542 | K30: =J30*D4 -> 3253.594771 | L30: =(H30/($H$28+$H$30+$H$31))*2000 -> 1767.44186 | M30: =J30 -> 6.507189542 | N30: =M30*D4 -> 3253.594771 | U30: BW-700 ADG-1.0 | V30: 0.0226 | W30: 8.6 | X30: 58.5 | Y30: 0.27 | Z30: 0.18
B31: $/ton | D31: =(VLOOKUP(F28,'Feed Library'!C5:I80,7,FALSE)*H28)+(VLOOKUP(F29,'Feed Library'!C5:I80,7,FALSE)*H29)+(VLOOKUP(F30,'Feed Library'!C5:I80,7,FALSE)*H30)+(VLOOKUP(F31,'Feed Library'!C5:I80,7,FALSE)*H31) -> 85.98650927 | E31: 4 | F31: =F13 -> Corn Gluten Feed | G31: =AO25*(1-G28) -> 0.05882352941 | H31: =J31/J32 -> 0.04215851602 | I31: =H31*2000 -> 84.31703204 | J31: =(G31*(J7))/(VLOOKUP(F31,'Feed Library'!C5:F80,2, FALSE)/100) -> 0.8562091503 | K31: =J31*D4 -> 428.1045752 | L31: =(H31/($H$28+$H$30+$H$31))*2000 -> 232.5581395 | M31: =J31 -> 0.8562091503 | N31: =M31*D4 -> 428.1045752 | U31: BW-700 ADG-1.5 | V31: 0.0236 | W31: 9.2 | X31: 63 | Y31: 0.31 | Z31: 0.2
B32: $/hd/d | D32: =D31/2000*J32 -> 0.8731620915 | F32: Total | G32: =SUM(G28:G31) -> 1 | H32: =SUM(H28:H31) -> 1 | I32: 2000 | J32: 20.30928105 | K32: 10154.64052 | L32: 2000 | M32: 7.363398693 | N32: =SUM(N28:N31) -> 3681.699346 | U32: BW-700 ADG-2.0 | V32: 0.024 | W32: 9.8 | X32: 67.5 | Y32: 0.34 | Z32: 0.21
B33: Ca:P | D33: =D29/D30 -> 1.86 | U33: BW-700 ADG-2.5 | V33: 0.0239 | W33: 10.5 | X33: 73.5 | Y33: 0.4 | Z33: 0.22
U34: BW-700 ADG-3.0 | V34: 0.0217 | W34: 11.7 | X34: 85 | Y34: 0.49 | Z34: 0.26
B35: NOT ENOUGH | E35: ADJUST MINERAL TO INCREASE | G35: ADJUST MINERAL TO INCREASE | U35: BW 800+ lb
B36: ENERGY AVAILABLE | E36: Ca:P RATIO To 1.5 | G36: Ca:P RATIO TO 1.5 | U36: BW-800+ ADG-1.0 | V36: 0.0219 | W36: 8 | X36: 58.5 | Y36: 0.23 | Z36: 0.18
B37: IN DIET | E37: Limestone needed: | G37: Limestone needed: | U37: BW-800+ ADG-1.5 | V37: 0.0228 | W37: 8.4 | X37: 63 | Y37: 0.25 | Z37: 0.19
E38: =AX23 -> 5.476951164 | F38: Lb/ton TMR | G38: =AX14 -> 7.198889499 | H38: Lb/ton TMR | U38: BW-800+ ADG-2.0 | V38: 0.0233 | W38: 8.8 | X38: 67.5 | Y38: 0.28 | Z38: 0.2
E39: =E38/(E38+I28+I30+I31)*2000 -> 14.9929523 | F39: Lb/ton Grazing or FC Forage | G39: =G38/(G38+I18+I20)*2000 -> 21.29178166 | H39: Lb/ton Grazing or FC Forage | U39: BW-800+ ADG-2.5 | V39: 0.0231 | W39: 9.3 | X39: 73.5 | Y39: 0.31 | Z39: 0.2
U40: BW-800+ ADG-3.0 | V40: 0.021 | W40: 10.1 | X40: 85 | Y40: 0.37 | Z40: 0.23
U42: User Defined | W42: - | X42: - | Y42: - | Z42: -
I98: Stocker Ration
I99: Date | J99: =TODAY() -> 2020-09-29
I100: Producer | J100: =D3 -> UGA Farms
I101: County | J101: =Program!O14 -> Simmental
I102: Agent | J102: =Program!O15 -> Joe Angus
I103: Local Contact | J103: =Program!O16 -> 706-542-1852 | O103: 1-800-ASK-UGA1
I106: Description: | O106: REQUIREMENTS:
I107: =C4 -> Group Size | J107: 500 | O107: TDN, % | Q107: =J3 -> 67.5
I108: Avg Weight | J108: 500 | O108: CP, % | Q108: =J4 -> 11.4
I109: Target Gain | J109: BW-500 ADG-2.0 | O109: Ca, % | Q109: =J5 -> 0.47
O110: P, % | Q110: =J6 -> 0.24
O111: DM Intake, lb/d | Q111: =J7 -> 13.1
I115: CHEMICAL COMPOSITION | L115: RATION | P115: =J16 -> -----Total Mixed Ration----- | T115: =M16 -> Grazing or Free Choice Forage
I116: =IF($D$18>($J$4-0.01),B17,B27) -> TDN | J116: =IF($D$18>($J$4-0.01),D17,D27) -> 67.5 | L116: =IF($D$18>($J$4-0.01),F17,F27) -> Ingredient | M116: DM % | N116: AF % | O116: lb/ton | P116: lb/hd/d | Q116: lb/group/d | R116: lb/ton | S116: lb/hd/d | T116: lb/group/d
I117: =IF($D$18>($J$4-0.01),B18,B28) -> CP | J117: =IF($D$18>($J$4-0.01),D18,D28) -> 12 | K117: 1 | L117: BLANK | M117: 0 | N117: 0 | O117: 0 | P117: 0 | Q117: 0 | R117: 0 | S117: 0 | T117: 0
I118: =IF($D$18>($J$4-0.01),B19,B29) -> Ca | J118: =IF($D$18>($J$4-0.01),D19,D29) -> 0.57625 | K118: 2 | L118: Ryegrass Baleage - Mature | M118: 0.525 | N118: 0.6654929577 | O118: 1330.985915 | P118: 13.755 | Q118: 6877.5 | R118: - | S118: - | T118: -
I119: =IF($D$18>($J$4-0.01),B20,B30) -> P | J119: =IF($D$18>($J$4-0.01),D20,D30) -> 0.27875 | K119: 3 | L119: Soybean Hulls | M119: 0.475 | N119: 0.3345070423 | O119: 669.0140845 | P119: 6.913888889 | Q119: 3456.944444 | R119: 2000 | S119: 6.913888889 | T119: 3456.944444
I120: =IF($D$18>($J$4-0.01),B23,B33) -> Ca:P | J120: =IF($D$18>($J$4-0.01),D23,D33) -> 2.067264574 | K120: 4 | L120: =IF($D$18>($J$4-0.01),N142,F31) -> - | M120: =IF($D$18>($J$4-0.01),N142,G31) -> - | N120: =IF($D$18>($J$4-0.01),O142,H31) -> - | O120: =IF($D$18>($J$4-0.01),Y122,I31) -> - | P120: =IF($D$18>($J$4-0.01),Z122,J31) -> - | Q120: =IF($D$18>($J$4-0.01),AA121,K31) -> - | R120: =IF($D$18>($J$4-0.01),Y122,L31) -> - | S120: =IF($D$18>($J$4-0.01),Z122,M31) -> - | T120: =IF($D$18>($J$4-0.01),AB121,N31) -> -
I121: =IF($D$18>($J$4-0.01),B21,B31) -> $/ton | J121: =IF($D$18>($J$4-0.01),D21,D31) -> 81.84859155 | L121: Total | M121: =SUM(M117:M120) -> 1 | N121: 1 | O121: 2000 | P121: 20.66888889 | Q121: 10334.44444 | R121: 2000 | S121: 6.913888889 | T121: 3456.944444 | AA121: - | AB121: - | AC121: -
I122: =IF($D$18>($J$4-0.01),B22,B32) -> $/hd/d | J122: =IF($D$18>($J$4-0.01),D22,D32) -> 0.8458597222 | Y122: - | Z122: -
I124: Limestone needed: | L124: Limestone needed:
I125: =G38 -> 7.198889499 | J125: =H38 -> Lb/ton TMR | L125: =E38 -> 5.476951164 | M125: =F38 -> Lb/ton TMR
I126: =G39 -> 21.29178166 | J126: =H39 -> Lb/ton Grazing or FC Forage | L126: =E39 -> 14.9929523 | M126: =F39 -> Lb/ton Grazing or FC Forage
I131: Notes:
I132: • | J132: =IF(L3="","",L3) -> 
I133: •
I134: •
I135: •
I136: •
I137: •
N142: - | O142: - | P142: - | Q142: - | R142: -

Sheet Analyzer
B1: Ration Analyzer
B3: Ration 1 | K3: Ration 2
C4: As Fed | E4: Dry Matter | H4: Diet Analysis | L4: As Fed | N4: Dry Matter | Q4: Diet Analysis
B5: Ingredients | C5: lb/ton, lb/hd, or % | D5: % | E5: lb | F5: % of ration | H5: Item | I5: % | K5: Ingredients | L5: lb/ton, lb/hd, or % | M5: % | N5: lb | O5: % of ration | Q5: Item | R5: %
B6: Dried Distiller's Grains | C6: 0 | D6: =$C6/SUM($C$6:$C$15) -> 0 | E6: =C6*(VLOOKUP(B6,'Feed Library'!$C$5:$I$80,2,FALSE)/100) -> 0 | F6: =$E6/SUM($E$6:$E$15) -> 0 | H6: DM | I6: =(VLOOKUP(B6,'Feed Library'!C5:I80,2,FALSE)*F6)+(VLOOKUP(B7,'Feed Library'!C5:I80,2,FALSE)*F7)+(VLOOKUP(B8,'Feed Library'!C5:I80,2,FALSE)*F8)+(VLOOKUP(B9,'Feed Library'!C5:I80,2,FALSE)*F9)+(VLOOKUP(B10,'Feed Library'!C5:I80,2,FALSE)*F10)+(VLOOKUP(B11,'Feed Library'!C5:I80,2,FALSE)*F11)+(VLOOKUP(B12,'Feed Library'!C5:I80,2,FALSE)*F12)+(VLOOKUP(B13,'Feed Library'!C5:I80,2,FALSE)*F13)+(VLOOKUP(B14,'Feed Library'!C5:I80,2,FALSE)*F14)+(VLOOKUP(B15,'Feed Library'!C5:I80,2,FALSE)*F15) -> 90 | K6: Bermudagrass Hay, Average | L6: 1000 | M6: =$L6/SUM($L$6:$L$15) -> 0.4962779156 | N6: =L6*(VLOOKUP(K6,'Feed Library'!$C$5:$I$80,2,FALSE)/100) -> 850 | O6: =$N6/SUM($N$6:$N$15) -> 0.4816273338 | Q6: DM | R6: =(VLOOKUP(K6,'Feed Library'!C5:I80,2,FALSE)*O6)+(VLOOKUP(K7,'Feed Library'!C5:I80,2,FALSE)*O7)+(VLOOKUP(K8,'Feed Library'!C5:I80,2,FALSE)*O8)+(VLOOKUP(K9,'Feed Library'!C5:I80,2,FALSE)*O9)+(VLOOKUP(K10,'Feed Library'!C5:I80,2,FALSE)*O10)+(VLOOKUP(K11,'Feed Library'!C5:I80,2,FALSE)*O11)+(VLOOKUP(K12,'Feed Library'!C5:I80,2,FALSE)*O12)+(VLOOKUP(K13,'Feed Library'!C5:I80,2,FALSE)*O13)+(VLOOKUP(K14,'Feed Library'!C5:I80,2,FALSE)*O14)+(VLOOKUP(K15,'Feed Library'!C5:I80,2,FALSE)*O15) -> 87.66759215
B7: Salt | C7: 0 | D7: 0 | E7: =C7*(VLOOKUP(B7,'Feed Library'!$C$5:$I$80,2,FALSE)/100) -> 0 | F7: 0 | H7: CP | I7: =(VLOOKUP(B6,'Feed Library'!C5:I80,3,FALSE)*F6)+(VLOOKUP(B7,'Feed Library'!C5:I80,3,FALSE)*F7)+(VLOOKUP(B8,'Feed Library'!C5:I80,3,FALSE)*F8)+(VLOOKUP(B9,'Feed Library'!C5:I80,3,FALSE)*F9)+(VLOOKUP(B10,'Feed Library'!C5:I80,3,FALSE)*F10)+(VLOOKUP(B11,'Feed Library'!C5:I80,3,FALSE)*F11)+(VLOOKUP(B12,'Feed Library'!C5:I80,3,FALSE)*F12)+(VLOOKUP(B13,'Feed Library'!C5:I80,3,FALSE)*F13)+(VLOOKUP(B14,'Feed Library'!C5:I80,3,FALSE)*F14)+(VLOOKUP(B15,'Feed Library'!C5:I80,3,FALSE)*F15) -> 12.5 | K7: Gin Trash | L7: 0 | M7: =$L7/SUM($L$6:$L$15) -> 0 | N7: =L7*(VLOOKUP(K7,'Feed Library'!$C$5:$I$80,2,FALSE)/100) -> 0 | O7: =$N7/SUM($N$6:$N$15) -> 0 | Q7: CP | R7: =(VLOOKUP(K6,'Feed Library'!C5:I80,3,FALSE)*O6)+(VLOOKUP(K7,'Feed Library'!C5:I80,3,FALSE)*O7)+(VLOOKUP(K8,'Feed Library'!C5:I80,3,FALSE)*O8)+(VLOOKUP(K9,'Feed Library'!C5:I80,3,FALSE)*O9)+(VLOOKUP(K10,'Feed Library'!C5:I80,3,FALSE)*O10)+(VLOOKUP(K11,'Feed Library'!C5:I80,3,FALSE)*O11)+(VLOOKUP(K12,'Feed Library'!C5:I80,3,FALSE)*O12)+(VLOOKUP(K13,'Feed Library'!C5:I80,3,FALSE)*O13)+(VLOOKUP(K14,'Feed Library'!C5:I80,3,FALSE)*O14)+(VLOOKUP(K15,'Feed Library'!C5:I80,3,FALSE)*O15) -> 8.721129274
B8: Limestone | C8: 0 | D8: 0 | E8: =C8*(VLOOKUP(B8,'Feed Library'!$C$5:$I$80,2,FALSE)/100) -> 0 | F8: 0 | H8: TDN | I8: =(VLOOKUP(B6,'Feed Library'!C5:I80,4,FALSE)*F6)+(VLOOKUP(B7,'Feed Library'!C5:I80,4,FALSE)*F7)+(VLOOKUP(B8,'Feed Library'!C5:I80,4,FALSE)*F8)+(VLOOKUP(B9,'Feed Library'!C5:I80,4,FALSE)*F9)+(VLOOKUP(B10,'Feed Library'!C5:I80,4,FALSE)*F10)+(VLOOKUP(B11,'Feed Library'!C5:I80,4,FALSE)*F11)+(VLOOKUP(B12,'Feed Library'!C5:I80,4,FALSE)*F12)+(VLOOKUP(B13,'Feed Library'!C5:I80,4,FALSE)*F13)+(VLOOKUP(B14,'Feed Library'!C5:I80,4,FALSE)*F14)+(VLOOKUP(B15,'Feed Library'!C5:I80,4,FALSE)*F15) -> 69 | K8: Corn | L8: 800 | M8: 0.3970223325 | N8: =L8*(VLOOKUP(K8,'Feed Library'!$C$5:$I$80,2,FALSE)/100) -> 720 | O8: 0.4079666827 | Q8: TDN | R8: =(VLOOKUP(K6,'Feed Library'!C5:I80,4,FALSE)*O6)+(VLOOKUP(K7,'Feed Library'!C5:I80,4,FALSE)*O7)+(VLOOKUP(K8,'Feed Library'!C5:I80,4,FALSE)*O8)+(VLOOKUP(K9,'Feed Library'!C5:I80,4,FALSE)*O9)+(VLOOKUP(K10,'Feed Library'!C5:I80,4,FALSE)*O10)+(VLOOKUP(K11,'Feed Library'!C5:I80,4,FALSE)*O11)+(VLOOKUP(K12,'Feed Library'!C5:I80,4,FALSE)*O12)+(VLOOKUP(K13,'Feed Library'!C5:I80,4,FALSE)*O13)+(VLOOKUP(K14,'Feed Library'!C5:I80,4,FALSE)*O14)+(VLOOKUP(K15,'Feed Library'!C5:I80,4,FALSE)*O15) -> 71.57066323
B9: Peanut Hulls | C9: 25 | D9: 0.25 | E9: =C9*(VLOOKUP(B9,'Feed Library'!$C$5:$I$80,2,FALSE)/100) -> 22.5 | F9: 0.25 | H9: Ca | I9: =(VLOOKUP(B6,'Feed Library'!C5:I80,5,FALSE)*F6)+(VLOOKUP(B7,'Feed Library'!C5:I80,5,FALSE)*F7)+(VLOOKUP(B8,'Feed Library'!C5:I80,5,FALSE)*F8)+(VLOOKUP(B9,'Feed Library'!C5:I80,5,FALSE)*F9)+(VLOOKUP(B10,'Feed Library'!C5:I80,5,FALSE)*F10)+(VLOOKUP(B11,'Feed Library'!C5:I80,5,FALSE)*F11)+(VLOOKUP(B12,'Feed Library'!C5:I80,5,FALSE)*F12)+(VLOOKUP(B13,'Feed Library'!C5:I80,5,FALSE)*F13)+(VLOOKUP(B14,'Feed Library'!C5:I80,5,FALSE)*F14)+(VLOOKUP(B15,'Feed Library'!C5:I80,5,FALSE)*F15) -> 0.4625 | K9: Citrus Pulp | L9: 200 | M9: 0.09925558313 | N9: =L9*(VLOOKUP(K9,'Feed Library'!$C$5:$I$80,2,FALSE)/100) -> 180 | O9: 0.1019916707 | Q9: Ca | R9: =(VLOOKUP(K6,'Feed Library'!C5:I80,5,FALSE)*O6)+(VLOOKUP(K7,'Feed Library'!C5:I80,5,FALSE)*O7)+(VLOOKUP(K8,'Feed Library'!C5:I80,5,FALSE)*O8)+(VLOOKUP(K9,'Feed Library'!C5:I80,5,FALSE)*O9)+(VLOOKUP(K10,'Feed Library'!C5:I80,5,FALSE)*O10)+(VLOOKUP(K11,'Feed Library'!C5:I80,5,FALSE)*O11)+(VLOOKUP(K12,'Feed Library'!C5:I80,5,FALSE)*O12)+(VLOOKUP(K13,'Feed Library'!C5:I80,5,FALSE)*O13)+(VLOOKUP(K14,'Feed Library'!C5:I80,5,FALSE)*O14)+(VLOOKUP(K15,'Feed Library'!C5:I80,5,FALSE)*O15) -> 0.6932883814
B10: Corn Gluten Feed | C10: 25 | D10: 0.25 | E10: =C10*(VLOOKUP(B10,'Feed Library'!$C$5:$I$80,2,FALSE)/100) -> 22.5 | F10: 0.25 | H10: P | I10: =(VLOOKUP(B6,'Feed Library'!C5:I80,6,FALSE)*F6)+(VLOOKUP(B7,'Feed Library'!C5:I80,6,FALSE)*F7)+(VLOOKUP(B8,'Feed Library'!C5:I80,6,FALSE)*F8)+(VLOOKUP(B9,'Feed Library'!C5:I80,6,FALSE)*F9)+(VLOOKUP(B10,'Feed Library'!C5:I80,6,FALSE)*F10)+(VLOOKUP(B11,'Feed Library'!C5:I80,6,FALSE)*F11)+(VLOOKUP(B12,'Feed Library'!C5:I80,6,FALSE)*F12)+(VLOOKUP(B13,'Feed Library'!C5:I80,6,FALSE)*F13)+(VLOOKUP(B14,'Feed Library'!C5:I80,6,FALSE)*F14)+(VLOOKUP(B15,'Feed Library'!C5:I80,6,FALSE)*F15) -> 0.2975 | K10: Limestone | L10: 15 | M10: 0.007444168734 | N10: =L10*(VLOOKUP(K10,'Feed Library'!$C$5:$I$80,2,FALSE)/100) -> 14.85 | O10: 0.008414312831 | Q10: P | R10: =(VLOOKUP(K6,'Feed Library'!C5:I80,6,FALSE)*O6)+(VLOOKUP(K7,'Feed Library'!C5:I80,6,FALSE)*O7)+(VLOOKUP(K8,'Feed Library'!C5:I80,6,FALSE)*O8)+(VLOOKUP(K9,'Feed Library'!C5:I80,6,FALSE)*O9)+(VLOOKUP(K10,'Feed Library'!C5:I80,6,FALSE)*O10)+(VLOOKUP(K11,'Feed Library'!C5:I80,6,FALSE)*O11)+(VLOOKUP(K12,'Feed Library'!C5:I80,6,FALSE)*O12)+(VLOOKUP(K13,'Feed Library'!C5:I80,6,FALSE)*O13)+(VLOOKUP(K14,'Feed Library'!C5:I80,6,FALSE)*O14)+(VLOOKUP(K15,'Feed Library'!C5:I80,6,FALSE)*O15) -> 0.2448641528
B11: Limestone | C11: 0 | D11: 0 | E11: =C11*(VLOOKUP(B11,'Feed Library'!$C$5:$I$80,2,FALSE)/100) -> 0 | F11: 0 | H11: Ca:P | I11: =I9/I10 -> 1.554621849 | K11: BLANK | L11: 0 | M11: 0 | N11: =L11*(VLOOKUP(K11,'Feed Library'!$C$5:$I$80,2,FALSE)/100) -> 0 | O11: 0 | Q11: Ca:P | R11: =R9/R10 -> 2.831318401
B12: Soybean Hulls | C12: 25 | D12: 0.25 | E12: =C12*(VLOOKUP(B12,'Feed Library'!$C$5:$I$80,2,FALSE)/100) -> 22.5 | F12: 0.25 | H12: $/ton | I12: =((VLOOKUP(B6,'Feed Library'!C5:I80,7,FALSE)*D6)+(VLOOKUP(B7,'Feed Library'!C5:I80,7,FALSE)*D7)+(VLOOKUP(B8,'Feed Library'!C5:I80,7,FALSE)*D8)+(VLOOKUP(B9,'Feed Library'!C5:I80,7,FALSE)*D9)+(VLOOKUP(B10,'Feed Library'!C5:I80,7,FALSE)*D10)+(VLOOKUP(B11,'Feed Library'!C5:I80,7,FALSE)*D11)+(VLOOKUP(B12,'Feed Library'!C5:I80,7,FALSE)*D12)+(VLOOKUP(B13,'Feed Library'!C5:I80,7,FALSE)*D13)+(VLOOKUP(B14,'Feed Library'!C5:I80,7,FALSE)*D14)+(VLOOKUP(B15,'Feed Library'!C5:I80,7,FALSE)*D15)) -> 136.25 | K12: BLANK | L12: 0 | M12: 0 | N12: =L12*(VLOOKUP(K12,'Feed Library'!$C$5:$I$80,2,FALSE)/100) -> 0 | O12: 0 | Q12: $/ton | R12: =((VLOOKUP(K6,'Feed Library'!C5:I80,7,FALSE)*M6)+(VLOOKUP(K7,'Feed Library'!C5:I80,7,FALSE)*M7)+(VLOOKUP(K8,'Feed Library'!C5:I80,7,FALSE)*M8)+(VLOOKUP(K9,'Feed Library'!C5:I80,7,FALSE)*M9)+(VLOOKUP(K10,'Feed Library'!C5:I80,7,FALSE)*M10)+(VLOOKUP(K11,'Feed Library'!C5:I80,7,FALSE)*M11)+(VLOOKUP(K12,'Feed Library'!C5:I80,7,FALSE)*M12)+(VLOOKUP(K13,'Feed Library'!C5:I80,7,FALSE)*M13)+(VLOOKUP(K14,'Feed Library'!C5:I80,7,FALSE)*M14)+(VLOOKUP(K15,'Feed Library'!C5:I80,7,FALSE)*M15)) -> 130.955335
B13: Corn | C13: 25 | D13: 0.25 | E13: =C13*(VLOOKUP(B13,'Feed Library'!$C$5:$I$80,2,FALSE)/100) -> 22.5 | F13: 0.25 | K13: BLANK | L13: 0 | M13: 0 | N13: =L13*(VLOOKUP(K13,'Feed Library'!$C$5:$I$80,2,FALSE)/100) -> 0 | O13: 0
B14: BLANK | C14: 0 | D14: 0 | E14: =C14*(VLOOKUP(B14,'Feed Library'!$C$5:$I$80,2,FALSE)/100) -> 0 | F14: 0 | K14: BLANK | L14: 0 | M14: 0 | N14: =L14*(VLOOKUP(K14,'Feed Library'!$C$5:$I$80,2,FALSE)/100) -> 0 | O14: 0
B15: BLANK | C15: 0 | D15: 0 | E15: =C15*(VLOOKUP(B15,'Feed Library'!$C$5:$I$80,2,FALSE)/100) -> 0 | F15: 0 | K15: BLANK | L15: 0 | M15: 0 | N15: =L15*(VLOOKUP(K15,'Feed Library'!$C$5:$I$80,2,FALSE)/100) -> 0 | O15: 0
B16: Total | C16: =SUM(C6:C15) -> 100 | D16: =SUM(D6:D15) -> 1 | E16: =SUM(E6:E15) -> 90 | F16: =SUM(F6:F15) -> 1 | K16: Total | L16: =SUM(L6:L15) -> 2015 | M16: =SUM(M6:M15) -> 1 | N16: =SUM(N6:N15) -> 1764.85 | O16: =SUM(O6:O15) -> 1

Sheet Batch Mix
B1: Batch Mix
B3: Batch size, lb | C3: 2000
C4: As Fed | F4: Dry Matter | I4: Diet Analysis
B5: Ingredients | C5: lb/ton, lb/hd, or % | D5: % | E5: lb/batch | F5: lb | G5: % of ration | I5: Item | J5: %
B6: Dried Distiller's Grains | C6: 3 | D6: =$C6/SUM($C$6:$C$15) -> 0.8823529412 | E6: =$C$3*D6 -> 1764.705882 | F6: =C6*(VLOOKUP(B6,'Feed Library'!$C$5:$I$80,2,FALSE)/100) -> 2.7 | G6: =$F6/SUM($F$6:$F$15) -> 0.8720930233 | I6: DM | J6: =(VLOOKUP(B6,'Feed Library'!C5:I80,2,FALSE)*G6)+(VLOOKUP(B7,'Feed Library'!C5:I80,2,FALSE)*G7)+(VLOOKUP(B8,'Feed Library'!C5:I80,2,FALSE)*G8)+(VLOOKUP(B9,'Feed Library'!C5:I80,2,FALSE)*G9)+(VLOOKUP(B10,'Feed Library'!C5:I80,2,FALSE)*G10)+(VLOOKUP(B11,'Feed Library'!C5:I80,2,FALSE)*G11)+(VLOOKUP(B12,'Feed Library'!C5:I80,2,FALSE)*G12)+(VLOOKUP(B13,'Feed Library'!C5:I80,2,FALSE)*G13)+(VLOOKUP(B14,'Feed Library'!C5:I80,2,FALSE)*G14)+(VLOOKUP(B15,'Feed Library'!C5:I80,2,FALSE)*G15) -> 91.15116279
B7: Soybean Hulls | C7: 0 | D7: 0 | E7: =$C$3*D7 -> 0 | F7: =C7*(VLOOKUP(B7,'Feed Library'!$C$5:$I$80,2,FALSE)/100) -> 0 | G7: 0 | I7: CP | J7: =(VLOOKUP(B6,'Feed Library'!C5:I80,3,FALSE)*G6)+(VLOOKUP(B7,'Feed Library'!C5:I80,3,FALSE)*G7)+(VLOOKUP(B8,'Feed Library'!C5:I80,3,FALSE)*G8)+(VLOOKUP(B9,'Feed Library'!C5:I80,3,FALSE)*G9)+(VLOOKUP(B10,'Feed Library'!C5:I80,3,FALSE)*G10)+(VLOOKUP(B11,'Feed Library'!C5:I80,3,FALSE)*G11)+(VLOOKUP(B12,'Feed Library'!C5:I80,3,FALSE)*G12)+(VLOOKUP(B13,'Feed Library'!C5:I80,3,FALSE)*G13)+(VLOOKUP(B14,'Feed Library'!C5:I80,3,FALSE)*G14)+(VLOOKUP(B15,'Feed Library'!C5:I80,3,FALSE)*G15) -> 24.43139535
B8: Limestone | C8: 0.15 | D8: 0.04411764706 | E8: 88.23529412 | F8: =C8*(VLOOKUP(B8,'Feed Library'!$C$5:$I$80,2,FALSE)/100) -> 0.1485 | G8: 0.04796511628 | I8: TDN | J8: =(VLOOKUP(B6,'Feed Library'!C5:I80,4,FALSE)*G6)+(VLOOKUP(B7,'Feed Library'!C5:I80,4,FALSE)*G7)+(VLOOKUP(B8,'Feed Library'!C5:I80,4,FALSE)*G8)+(VLOOKUP(B9,'Feed Library'!C5:I80,4,FALSE)*G9)+(VLOOKUP(B10,'Feed Library'!C5:I80,4,FALSE)*G10)+(VLOOKUP(B11,'Feed Library'!C5:I80,4,FALSE)*G11)+(VLOOKUP(B12,'Feed Library'!C5:I80,4,FALSE)*G12)+(VLOOKUP(B13,'Feed Library'!C5:I80,4,FALSE)*G13)+(VLOOKUP(B14,'Feed Library'!C5:I80,4,FALSE)*G14)+(VLOOKUP(B15,'Feed Library'!C5:I80,4,FALSE)*G15) -> 80.24534884
B9: Basic | C9: 0.25 | D9: 0.07352941176 | E9: 147.0588235 | F9: =C9*(VLOOKUP(B9,'Feed Library'!$C$5:$I$80,2,FALSE)/100) -> 0.2475 | G9: 0.07994186047 | I9: Ca | J9: =(VLOOKUP(B6,'Feed Library'!C5:I80,5,FALSE)*G6)+(VLOOKUP(B7,'Feed Library'!C5:I80,5,FALSE)*G7)+(VLOOKUP(B8,'Feed Library'!C5:I80,5,FALSE)*G8)+(VLOOKUP(B9,'Feed Library'!C5:I80,5,FALSE)*G9)+(VLOOKUP(B10,'Feed Library'!C5:I80,5,FALSE)*G10)+(VLOOKUP(B11,'Feed Library'!C5:I80,5,FALSE)*G11)+(VLOOKUP(B12,'Feed Library'!C5:I80,5,FALSE)*G12)+(VLOOKUP(B13,'Feed Library'!C5:I80,5,FALSE)*G13)+(VLOOKUP(B14,'Feed Library'!C5:I80,5,FALSE)*G14)+(VLOOKUP(B15,'Feed Library'!C5:I80,5,FALSE)*G15) -> 2.873546512
B10: Corn Gluten Feed | C10: 0 | D10: 0 | E10: 0 | F10: =C10*(VLOOKUP(B10,'Feed Library'!$C$5:$I$80,2,FALSE)/100) -> 0 | G10: 0 | I10: P | J10: =(VLOOKUP(B6,'Feed Library'!C5:I80,6,FALSE)*G6)+(VLOOKUP(B7,'Feed Library'!C5:I80,6,FALSE)*G7)+(VLOOKUP(B8,'Feed Library'!C5:I80,6,FALSE)*G8)+(VLOOKUP(B9,'Feed Library'!C5:I80,6,FALSE)*G9)+(VLOOKUP(B10,'Feed Library'!C5:I80,6,FALSE)*G10)+(VLOOKUP(B11,'Feed Library'!C5:I80,6,FALSE)*G11)+(VLOOKUP(B12,'Feed Library'!C5:I80,6,FALSE)*G12)+(VLOOKUP(B13,'Feed Library'!C5:I80,6,FALSE)*G13)+(VLOOKUP(B14,'Feed Library'!C5:I80,6,FALSE)*G14)+(VLOOKUP(B15,'Feed Library'!C5:I80,6,FALSE)*G15) -> 1.407456395
B11: Limestone | C11: 0 | D11: 0 | E11: 0 | F11: =C11*(VLOOKUP(B11,'Feed Library'!$C$5:$I$80,2,FALSE)/100) -> 0 | G11: 0 | I11: Ca:P | J11: =J9/J10 -> 2.041659352
B12: BLANK | C12: 0 | D12: 0 | E12: 0 | F12: =C12*(VLOOKUP(B12,'Feed Library'!$C$5:$I$80,2,FALSE)/100) -> 0 | G12: 0 | I12: $/ton | J12: =((VLOOKUP(B6,'Feed Library'!C5:I80,7,FALSE)*D6)+(VLOOKUP(B7,'Feed Library'!C5:I80,7,FALSE)*D7)+(VLOOKUP(B8,'Feed Library'!C5:I80,7,FALSE)*D8)+(VLOOKUP(B9,'Feed Library'!C5:I80,7,FALSE)*D9)+(VLOOKUP(B10,'Feed Library'!C5:I80,7,FALSE)*D10)+(VLOOKUP(B11,'Feed Library'!C5:I80,7,FALSE)*D11)+(VLOOKUP(B12,'Feed Library'!C5:I80,7,FALSE)*D12)+(VLOOKUP(B13,'Feed Library'!C5:I80,7,FALSE)*D13)+(VLOOKUP(B14,'Feed Library'!C5:I80,7,FALSE)*D14)+(VLOOKUP(B15,'Feed Library'!C5:I80,7,FALSE)*D15)) -> 43.75
B13: BLANK | C13: 0 | D13: 0 | E13: 0 | F13: =C13*(VLOOKUP(B13,'Feed Library'!$C$5:$I$80,2,FALSE)/100) -> 0 | G13: 0
B14: BLANK | C14: 0 | D14: 0 | E14: 0 | F14: =C14*(VLOOKUP(B14,'Feed Library'!$C$5:$I$80,2,FALSE)/100) -> 0 | G14: 0
B15: BLANK | C15: 0 | D15: 0 | E15: 0 | F15: =C15*(VLOOKUP(B15,'Feed Library'!$C$5:$I$80,2,FALSE)/100) -> 0 | G15: 0
B16: Total | C16: =SUM(C6:C15) -> 3.4 | D16: =SUM(D6:D15) -> 1 | E16: =SUM(E6:E15) -> 2000 | F16: =SUM(F6:F15) -> 3.096 | G16: =SUM(G6:G15) -> 1
